NUMERO_MANDATO;RIGA_MANDATO;QUIET;IMPORTO_RIGA;IMPORTO_MANDATO;BENEFICIARIO;CIG;TITOLO_PAGAMENTO;DATA_MANDATO;CAPITOLO;ARTICOLO;NUMERO_IMPEGNO;TITOLO;DESCR_TITOLO;LIVELLO_II;DESCR_LIVELLO_II;LIVELLO_III;DESCR_LIVELLO_III;LIVELLO_IV;DESCR_LIVELLO_IV;LIVELLO_V;DESCR_LIVELLO_V;DATA_PAG_EFF;
577;1;0;"613,80";"613,80";ECONOMO COMUNALE; ;RIMBORSO BUONI ECONOMALI SECONDO TRIMESTRE 2018;03-07-2018;110224;0;6;1;Spese correnti;3;Acquisto di beni e servizi;1;Acquisto di beni;2;Altri beni di consumo;999;Altri beni e materiali di consumo n.a.c.;03-07-2018;
578;1;0;"15,00";"15,00";ECONOMO COMUNALE; ;RIMBORSO BUONI ECONOMALI SECONDO TRIMESTRE 2018;03-07-2018;110210;0;11;1;Spese correnti;3;Acquisto di beni e servizi;2;Acquisto di servizi;99;Altri servizi;999;Altri servizi diversi n.a.c.;03-07-2018;
579;1;0;"98,99";"98,99";ECONOMO COMUNALE; ;RIMBORSO BUONI ECONOMALI SECONDO TRIMESTRE 2018;03-07-2018;110248;0;7;1;Spese correnti;3;Acquisto di beni e servizi;2;Acquisto di servizi;19;Servizi informatici e di telecomunicazioni;1;Gestione e manutenzione applicazioni;03-07-2018;
580;1;0;"9,43";"9,43";ECONOMO COMUNALE; ;RIMBORSO BUONI ECONOMALI SECONDO TRIMESTRE 2018;03-07-2018;110260;0;9;1;Spese correnti;3;Acquisto di beni e servizi;2;Acquisto di servizi;16;Servizi amministrativi;2;Spese postali;03-07-2018;
581;1;0;"2.283,84";"2.283,84";CANIGLIA CAMILLO;Z0713ACC93;SALDO Fatt.n. 1/PA  del 13/02/2018 SALDO PRESTAZIONI PROFESSIONALI PER SISTEMAZIONE STRADE COMUNALI FOCE;03-07-2018;270132;0;250;2;Spese in conto capitale;2;Investimenti fissi lordi e acquisto di terreni;1;Beni materiali;9;Beni immobili;12;Infrastrutture stradali;03-07-2018;
584;1;0;"4.346,31";"4.346,31";CASSA DEPOSITI E PRESTITI; ;CDP008 0002472 06126 30062018;03-07-2018;110662;0;140;1;Spese correnti;7;Interessi passivi;5;Interessi su Mutui e altri finanziamenti a medio lungo termine;4;Interessi passivi su finanziamenti a medio lungo termine a Imprese;3;Interessi passivi a Cassa Depositi e Prestiti SPA su mutui e altri finanziamenti a medio lungo termine;03-07-2018;
585;1;0;"273,09";"273,09";CASSA DEPOSITI E PRESTITI; ;CDP008 0002472 06126 30062018;03-07-2018;110862;0;141;1;Spese correnti;7;Interessi passivi;5;Interessi su Mutui e altri finanziamenti a medio lungo termine;5;Interessi passivi su mutui e altri finanziamenti a medio lungo termine ad altri soggetti;999;Interessi passivi su mutui e altri finanziamenti a medio lungo termine ad altri soggetti;03-07-2018;
586;1;0;"668,33";"668,33";CASSA DEPOSITI E PRESTITI; ;CDP008 0002472 06126 30062018;03-07-2018;140264;0;142;1;Spese correnti;7;Interessi passivi;5;Interessi su Mutui e altri finanziamenti a medio lungo termine;4;Interessi passivi su finanziamenti a medio lungo termine a Imprese;3;Interessi passivi a Cassa Depositi e Prestiti SPA su mutui e altri finanziamenti a medio lungo termine;03-07-2018;
587;1;0;"121,01";"121,01";CASSA DEPOSITI E PRESTITI; ;CDP008 0002472 06126 30062018;03-07-2018;140472;0;143;1;Spese correnti;7;Interessi passivi;5;Interessi su Mutui e altri finanziamenti a medio lungo termine;4;Interessi passivi su finanziamenti a medio lungo termine a Imprese;3;Interessi passivi a Cassa Depositi e Prestiti SPA su mutui e altri finanziamenti a medio lungo termine;03-07-2018;
588;1;0;"587,83";"587,83";CASSA DEPOSITI E PRESTITI; ;CDP008 0002472 06126 30062018;03-07-2018;150142;0;144;1;Spese correnti;7;Interessi passivi;5;Interessi su Mutui e altri finanziamenti a medio lungo termine;4;Interessi passivi su finanziamenti a medio lungo termine a Imprese;3;Interessi passivi a Cassa Depositi e Prestiti SPA su mutui e altri finanziamenti a medio lungo termine;03-07-2018;
589;1;0;"71,95";"71,95";CASSA DEPOSITI E PRESTITI; ;CDP008 0002472 06126 30062018;03-07-2018;160762;0;146;1;Spese correnti;7;Interessi passivi;5;Interessi su Mutui e altri finanziamenti a medio lungo termine;4;Interessi passivi su finanziamenti a medio lungo termine a Imprese;3;Interessi passivi a Cassa Depositi e Prestiti SPA su mutui e altri finanziamenti a medio lungo termine;03-07-2018;
590;1;0;"5.958,75";"5.958,75";CASSA DEPOSITI E PRESTITI; ;CDP008 0002472 06126 30062018;03-07-2018;160140;0;145;1;Spese correnti;7;Interessi passivi;5;Interessi su Mutui e altri finanziamenti a medio lungo termine;4;Interessi passivi su finanziamenti a medio lungo termine a Imprese;3;Interessi passivi a Cassa Depositi e Prestiti SPA su mutui e altri finanziamenti a medio lungo termine;03-07-2018;
591;1;0;"1.690,43";"1.690,43";CASSA DEPOSITI E PRESTITI; ;CDP008 0002472 06126 30062018;03-07-2018;161262;0;147;1;Spese correnti;7;Interessi passivi;5;Interessi su Mutui e altri finanziamenti a medio lungo termine;4;Interessi passivi su finanziamenti a medio lungo termine a Imprese;3;Interessi passivi a Cassa Depositi e Prestiti SPA su mutui e altri finanziamenti a medio lungo termine;03-07-2018;
592;1;0;"1.429,41";"1.429,41";CASSA DEPOSITI E PRESTITI; ;CDP008 0002472 06126 30062018;03-07-2018;161364;0;148;1;Spese correnti;7;Interessi passivi;5;Interessi su Mutui e altri finanziamenti a medio lungo termine;4;Interessi passivi su finanziamenti a medio lungo termine a Imprese;3;Interessi passivi a Cassa Depositi e Prestiti SPA su mutui e altri finanziamenti a medio lungo termine;03-07-2018;
593;1;0;"11.823,89";"11.823,89";CASSA DEPOSITI E PRESTITI; ;CDP008 0002472 06126 30062018;03-07-2018;170164;0;149;1;Spese correnti;7;Interessi passivi;5;Interessi su Mutui e altri finanziamenti a medio lungo termine;4;Interessi passivi su finanziamenti a medio lungo termine a Imprese;3;Interessi passivi a Cassa Depositi e Prestiti SPA su mutui e altri finanziamenti a medio lungo termine;03-07-2018;
594;1;0;"2.894,07";"2.894,07";CASSA DEPOSITI E PRESTITI; ;CDP008 0002472 06126 30062018;03-07-2018;170166;0;150;1;Spese correnti;7;Interessi passivi;5;Interessi su Mutui e altri finanziamenti a medio lungo termine;4;Interessi passivi su finanziamenti a medio lungo termine a Imprese;3;Interessi passivi a Cassa Depositi e Prestiti SPA su mutui e altri finanziamenti a medio lungo termine;03-07-2018;
595;1;0;"6.564,91";"7.719,23";CASSA DEPOSITI E PRESTITI; ;MEF008 0002472 06126 30062018;03-07-2018;170262;0;151;1;Spese correnti;7;Interessi passivi;5;Interessi su Mutui e altri finanziamenti a medio lungo termine;4;Interessi passivi su finanziamenti a medio lungo termine a Imprese;3;Interessi passivi a Cassa Depositi e Prestiti SPA su mutui e altri finanziamenti a medio lungo termine;03-07-2018;
595;2;0;"1.154,32";"7.719,23";CASSA DEPOSITI E PRESTITI; ;CDP008 0002472 06126 30062018;03-07-2018;170262;0;151;1;Spese correnti;7;Interessi passivi;5;Interessi su Mutui e altri finanziamenti a medio lungo termine;4;Interessi passivi su finanziamenti a medio lungo termine a Imprese;3;Interessi passivi a Cassa Depositi e Prestiti SPA su mutui e altri finanziamenti a medio lungo termine;03-07-2018;
596;1;0;"232,40";"232,40";CASSA DEPOSITI E PRESTITI; ;MEF008 0002472 06126 30062018;03-07-2018;180260;0;152;1;Spese correnti;7;Interessi passivi;5;Interessi su Mutui e altri finanziamenti a medio lungo termine;4;Interessi passivi su finanziamenti a medio lungo termine a Imprese;4;Interessi passivi a Cassa Depositi e Prestiti - Gestione Tesoro su mutui e altri finanziamenti a medio lungo termine;03-07-2018;
597;1;0;"155,21";"155,21";CASSA DEPOSITI E PRESTITI; ;MEF008 0002472 06126 30062018;03-07-2018;180262;0;153;1;Spese correnti;7;Interessi passivi;5;Interessi su Mutui e altri finanziamenti a medio lungo termine;4;Interessi passivi su finanziamenti a medio lungo termine a Imprese;4;Interessi passivi a Cassa Depositi e Prestiti - Gestione Tesoro su mutui e altri finanziamenti a medio lungo termine;03-07-2018;
601;1;0;"7.068,45";"7.068,45";LECCE WAVE DI LECCE LUCA;68565289E4;SALDO Fatt.n. 02/PA/2018  del 25/01/2018 COMPLETAMENTO MESSA IN SICUREZZA EDIFICIO SCOLASTICO DEL CAPOLUOGO DEL COMUNE DI ROCCA SAN GIOVANNI;03-07-2018;240240;0;178;2;Spese in conto capitale;2;Investimenti fissi lordi e acquisto di terreni;1;Beni materiali;9;Beni immobili;3;Fabbricati ad uso scolastico;03-07-2018;
602;1;0;"1.500,00";"1.500,00";BANCA POPOLARE DELL'EMILIA ROMAGNA;ZA01C20DE3;SERVIZIO DI TESORERIA COMUNALE PERIODO APRILE - GIUGNO 2018;04-07-2018;110238;0;96;1;Spese correnti;3;Acquisto di beni e servizi;2;Acquisto di servizi;17;Servizi finanziari;2;Oneri per servizio di tesoreria;04-07-2018;
603;1;0;"337,51";"22.270,89";EDILIZIA DI BIASE S.R.L.;Z8D1EE7248;SALDO Fatt.n. 04  del 16/02/2018 SISTEMAZIONE STRADE COMUNALI NEL TERRITORIO DEL COMUNE DI ROCCA SAN GIOVANNI - SALDO LAVORO PROGETTO PRINCIPALE;04-07-2018;270132;0;250;2;Spese in conto capitale;2;Investimenti fissi lordi e acquisto di terreni;1;Beni materiali;9;Beni immobili;12;Infrastrutture stradali;04-07-2018;
603;2;0;"21.933,38";"22.270,89";EDILIZIA DI BIASE S.R.L.;6572890869;SALDO Fatt.n. 5  del 16/02/2018 SISTEMAZIONE STRADE COMUNALI NEL TERRITORIO DEL COMUNE DI ROCCA SAN GIOVANNI - SALDO LAVORO PROGETTO COMPLEMENTARE;04-07-2018;270132;0;250;2;Spese in conto capitale;2;Investimenti fissi lordi e acquisto di terreni;1;Beni materiali;9;Beni immobili;12;Infrastrutture stradali;04-07-2018;
605;1;0;"549,00";"1.699,70";TECNOASFALTI S.R.L.;Z8E222F6BD;SALDO Fatt.n. 10/10  del 31/03/2018 CONGLOMERATO BITUMINOSO;04-07-2018;270116;0;69;2;Spese in conto capitale;2;Investimenti fissi lordi e acquisto di terreni;1;Beni materiali;99;Altri beni materiali;999;Altri beni materiali diversi;04-07-2018;
605;2;0;"1.150,70";"1.699,70";TECNOASFALTI S.R.L.;Z8E222F6BD;SALDO Fatt.n. 25/10  del 30/04/2018 CONGLOMERATO BITUMINOSO A FREDDO;04-07-2018;270116;0;69;2;Spese in conto capitale;2;Investimenti fissi lordi e acquisto di terreni;1;Beni materiali;99;Altri beni materiali;999;Altri beni materiali diversi;04-07-2018;
606;1;0;"702,35";"702,35";BUTAN GAS;Z8D1D664F0;SALDO Fatt.n. 20/265P  del 22/12/2017 G.P.L. PROPANO;04-07-2018;161332;0;86;1;Spese correnti;3;Acquisto di beni e servizi;2;Acquisto di servizi;5;Utenze e canoni;6;Gas;04-07-2018;
607;1;0;"910,66";"910,66";TOP 20 S.R.L.;Z7721CC210;SALDO Fatt.n. 4534 00158  del 23/01/2018 ARTICOLI PER PULIZIA SCUOLE;04-07-2018;140140;0;76;1;Spese correnti;3;Acquisto di beni e servizi;1;Acquisto di beni;2;Altri beni di consumo;999;Altri beni e materiali di consumo n.a.c.;04-07-2018;
608;1;0;"322,74";"322,74";KONE S.P.A.;ZC81D66236;SALDO Fatt.n. 0093725968  del 29/12/2017 Fornitura Servizi di Manutenzione;04-07-2018;140344;0;74;1;Spese correnti;3;Acquisto di beni e servizi;2;Acquisto di servizi;5;Utenze e canoni;999;Utenze e canoni per altri servizi n.a.c.;04-07-2018;
609;1;0;"350,50";"350,50";RENZETTI SNC DI GABRIELE E NICOLA;ZD71D66546;SALDO Fatt.n. 29/02  del 27/12/2017 SCUOLABUS    CH 361865;04-07-2018;170146;0;56;1;Spese correnti;3;Acquisto di beni e servizi;2;Acquisto di servizi;9;Manutenzione ordinaria e riparazioni;1;"Manutenzione ordinaria e riparazioni di mezzi di trasporto ad uso civile, di sicurezza e ordine pubblico";04-07-2018;
610;1;0;"965,83";"965,83";BLUE LINE SOC. COOP. SOCIALE;X0919A7161;SALDO Fatt.n. 393  del 31/12/2017 PULIZIA DEI LOCALI COMUNALI NEL MESE DI DICEMBRE 2017;04-07-2018;110256;0;143;1;Spese correnti;3;Acquisto di beni e servizi;2;Acquisto di servizi;13;Servizi ausiliari per il funzionamento dell'ente;2;Servizi di pulizia e lavanderia;04-07-2018;
611;1;0;"585,60";"585,60";MORETTI CRISTIAN;Z071D66519;SALDO Fatt.n. 01PA  del 15/01/2018 FORNITURA PIETRISCO DI MONTAGNA;04-07-2018;270116;0;49;2;Spese in conto capitale;2;Investimenti fissi lordi e acquisto di terreni;1;Beni materiali;99;Altri beni materiali;999;Altri beni materiali diversi;04-07-2018;
612;1;0;"234,55";"234,55";DELLE VIGNE TOMMASO S.R.L.;ZB32230D75;SALDO Fatt.n. 115/02  del 28/02/2018 FERRAMENTA;04-07-2018;170112;0;71;1;Spese correnti;3;Acquisto di beni e servizi;1;Acquisto di beni;2;Altri beni di consumo;999;Altri beni e materiali di consumo n.a.c.;04-07-2018;
613;1;0;"223,00";"223,00";ANXA ENERGY SRL;Z5220E508C;SALDO Fatt.n. B/66  del 30/04/2018 GASOLIO E SUPER;04-07-2018;170108;0;183;1;Spese correnti;3;Acquisto di beni e servizi;1;Acquisto di beni;2;Altri beni di consumo;2;"Carburanti, combustibili e lubrificanti";04-07-2018;
614;1;0;"128,11";"235,93";DELLE VIGNE TOMMASO S.R.L.;Z7C21E961D;SALDO Fatt.n. 211/02  del 31/03/2018 FERRAMENTA;04-07-2018;170112;0;66;1;Spese correnti;3;Acquisto di beni e servizi;1;Acquisto di beni;2;Altri beni di consumo;999;Altri beni e materiali di consumo n.a.c.;04-07-2018;
614;2;0;"107,82";"235,93";VEMAC S.R.L.;Z7C21E961D;SALDO Fatt.n. 000217  del 30/12/2017 MATERIALE EDILE;04-07-2018;170112;0;66;1;Spese correnti;3;Acquisto di beni e servizi;1;Acquisto di beni;2;Altri beni di consumo;999;Altri beni e materiali di consumo n.a.c.;04-07-2018;
615;1;0;"407,11";"407,11";A.C.I.;ZF5222DF84;SALDO Fatt.n. 0000017258  del 18/06/2018 VISURE ANNO 2018;04-07-2018;130132;0;28;1;Spese correnti;3;Acquisto di beni e servizi;2;Acquisto di servizi;13;Servizi ausiliari per il funzionamento dell'ente;999;Altri servizi ausiliari n.a.c.;04-07-2018;
616;1;0;"1.088,93";"1.088,93";POSTE ITALIANE S.P.A.;ZC921B047B;SALDO Fatt.n. 8718106864  del 05/04/2018 CORRISPONDENZE AFFRANCATE NEL MESE DI GENNAIO 2018;04-07-2018;110260;0;12;1;Spese correnti;3;Acquisto di beni e servizi;2;Acquisto di servizi;16;Servizi amministrativi;2;Spese postali;04-07-2018;
617;1;0;"873,87";"2.621,61";CONSORZIO COOPERATIVE SOCIALI S.G.S.;ZF0189D68F;SALDO Fatt.n. 67/10  del 07/02/2018 GESTIONE BIBLIOTECA COMUNALE DI GENNAIO 2018;04-07-2018;140730;0;49;1;Spese correnti;3;Acquisto di beni e servizi;2;Acquisto di servizi;15;Contratti di servizio pubblico;999;Altre spese per contratti di servizio pubblico;04-07-2018;
617;2;0;"873,87";"2.621,61";CONSORZIO COOPERATIVE SOCIALI S.G.S.;ZF0189D68F;SALDO Fatt.n. 166/10  del 06/03/2018 GESTIONE BIBLIOTECA COMUNALE DI FEBBRAIO 2018;04-07-2018;140730;0;49;1;Spese correnti;3;Acquisto di beni e servizi;2;Acquisto di servizi;15;Contratti di servizio pubblico;999;Altre spese per contratti di servizio pubblico;04-07-2018;
617;3;0;"873,87";"2.621,61";CONSORZIO COOPERATIVE SOCIALI S.G.S.;ZF0189D68F;SALDO Fatt.n. 313/10  del 05/04/2018 GESTIONE BIBLIOTECA COMUNALE DI MARZO 2018;04-07-2018;140730;0;49;1;Spese correnti;3;Acquisto di beni e servizi;2;Acquisto di servizi;15;Contratti di servizio pubblico;999;Altre spese per contratti di servizio pubblico;04-07-2018;
618;1;0;"600,00";"1.200,00";IT CREATIVE DI D'ANGELO FRANCESCO;Z6D1D90C9A;SALDO Fatt.n. 8/A  del 28/02/2018 ASSISTENZA POSTAZIONI INFORMATICHE E SITO ISTITUZIONALE FEBBRAIO 2018;04-07-2018;110248;0;122;1;Spese correnti;3;Acquisto di beni e servizi;2;Acquisto di servizi;19;Servizi informatici e di telecomunicazioni;10;Servizi di consulenza e prestazioni professionali ICT;04-07-2018;
618;2;0;"600,00";"1.200,00";IT CREATIVE DI D'ANGELO FRANCESCO;Z6D1D90C9A;SALDO Fatt.n. 9/A  del 03/04/2018 ASSISTENZA POSTAZIONI INFORMATICHE E SITO ISTITUZIONALE MARZO 2018;04-07-2018;110248;0;122;1;Spese correnti;3;Acquisto di beni e servizi;2;Acquisto di servizi;19;Servizi informatici e di telecomunicazioni;10;Servizi di consulenza e prestazioni professionali ICT;04-07-2018;
619;1;0;"48,80";"48,80";ARUBA S.P.A.; ;SALDO Fatt.n. A18PAS0004354  del 31/03/2018 ORDINE 70109182 DEL 07-03-2018;04-07-2018;110248;0;7;1;Spese correnti;3;Acquisto di beni e servizi;2;Acquisto di servizi;19;Servizi informatici e di telecomunicazioni;1;Gestione e manutenzione applicazioni;04-07-2018;
620;1;0;"2.537,60";"2.537,60";ANTONELLI STEFANIA; ;SALDO Fatt.n. 3/01  del 03/05/2018 COMMISSIONE TRIBUTARIA CHIETI RG 556 2016;04-07-2018;190050;0;175;1;Spese correnti;3;Acquisto di beni e servizi;2;Acquisto di servizi;10;Consulenze;1;"Incarichi libero professionali di studi, ricerca e consulenza";04-07-2018;
621;1;0;"2.318,00";"2.318,00";MR di Molinaro Roberto;Z6822CBB7A;SALDO Fatt.n. FATTPA 21_18  del 12/04/2018 NOLEGGIO ALLESTIMENTO ARREDI SEDIE;04-07-2018;190050;0;97;1;Spese correnti;3;Acquisto di beni e servizi;2;Acquisto di servizi;10;Consulenze;1;"Incarichi libero professionali di studi, ricerca e consulenza";04-07-2018;
622;1;0;"1.363,96";"1.363,96";TEMPI MODERNI S.P.A.;ZF022A9AB7;SALDO Fatt.n. 2018/12-PA  del 06/04/2018 GESTIONE PRESELEZIONE CONCORSO PUBBLICO;04-07-2018;190050;0;63;1;Spese correnti;3;Acquisto di beni e servizi;2;Acquisto di servizi;10;Consulenze;1;"Incarichi libero professionali di studi, ricerca e consulenza";04-07-2018;
623;1;0;"288,48";"288,48";GRAFICA ISERNINA S.R.L.;Z8722E7147;SALDO Fatt.n. 2018-SE402-0000450  del 30/04/2018 MATERIALE PER ANAGRAFE E CANCELLERIA PER UFFICI VARI;04-07-2018;110224;0;98;1;Spese correnti;3;Acquisto di beni e servizi;1;Acquisto di beni;2;Altri beni di consumo;1;"Carta, cancelleria e stampati";04-07-2018;
624;1;0;"519,05";"519,05";MYO S.R.L.;Z0B22E722C;SALDO Fatt.n. 2040/180010919  del 13/04/2018 MATERIALE PER UFFICIO ANAGRAFE;04-07-2018;110224;0;103;1;Spese correnti;3;Acquisto di beni e servizi;1;Acquisto di beni;2;Altri beni di consumo;999;Altri beni e materiali di consumo n.a.c.;04-07-2018;
625;1;0;"600,00";"600,00";IT CREATIVE DI D'ANGELO FRANCESCO;Z6D1D90C9A;SALDO Fatt.n. 10/A  del 30/04/2018 ASSISTENZA POSTAZIONI INFORMATICHE E SITO ISTITUZIONALE APRILE 2018;04-07-2018;110248;0;122;1;Spese correnti;3;Acquisto di beni e servizi;2;Acquisto di servizi;19;Servizi informatici e di telecomunicazioni;10;Servizi di consulenza e prestazioni professionali ICT;04-07-2018;
626;1;0;"713,45";"713,45";ASSOCIAZIONE NAZIONALE CITTA' DEL VINO;ZC82239680;QUOTA ASSOCIATIVA 2017 PER L'ASSOCIAZIONE NAZIONALE CITTA' DEL VINO;04-07-2018;180220;0;236;1;Spese correnti;4;Trasferimenti correnti;4;Trasferimenti correnti a Istituzioni Sociali Private;1;Trasferimenti correnti a Istituzioni Sociali Private;1;Trasferimenti correnti a Istituzioni Sociali Private;04-07-2018;
627;1;0;"386,00";"386,00";AGENZIA DELLE ENTRATE RISCOSSIONE; ;LIQUIDAZIONE QUOTA ASSOCIATIVA A.N.C.I. ANNO 2018.;04-07-2018;110232;0;159;1;Spese correnti;4;Trasferimenti correnti;1;Trasferimenti correnti a Amministrazioni Pubbliche;2;Trasferimenti correnti a Amministrazioni Locali;999;Trasferimenti correnti a altre Amministrazioni Locali n.a.c.;04-07-2018;
628;1;0;"124,16";"124,16";AGENZIA DELLE ENTRATE RISCOSSIONE; ;LIQUIDAZIONE QUOTA ASSOCIATIVA A.N.C.I. ANNO 2018.;04-07-2018;180220;0;160;1;Spese correnti;4;Trasferimenti correnti;4;Trasferimenti correnti a Istituzioni Sociali Private;1;Trasferimenti correnti a Istituzioni Sociali Private;1;Trasferimenti correnti a Istituzioni Sociali Private;04-07-2018;
629;1;0;"20.049,97";"20.049,97";EURORESTAURI S.R.L.;68565289E4;SALDO Fatt.n. FATTPA 1_18  del 11/01/2018 COMPLETAMENTO MESSA IN SICUREZZA EDIFICIO SCOLASTICO CAPOLUOGO;16-07-2018;240240;0;178;2;Spese in conto capitale;2;Investimenti fissi lordi e acquisto di terreni;1;Beni materiali;9;Beni immobili;3;Fabbricati ad uso scolastico;16-07-2018;
630;1;0;"40.310,64";"40.310,64";COMUNE DI FOSSACESIA; ;IMPEGNO DI SPESA PER GARANTIRE LA CONTINUITA' DEI SERVIZI SOCIALI MAG.-GIU.2018;16-07-2018;161546;0;13;1;Spese correnti;4;Trasferimenti correnti;1;Trasferimenti correnti a Amministrazioni Pubbliche;2;Trasferimenti correnti a Amministrazioni Locali;5;Trasferimenti correnti a Unioni di Comuni;16-07-2018;
631;1;0;"426,32";"426,32";KONE S.P.A.;Z751D623A4;SALDO Fatt.n. 0093740816  del 08/01/2018 Fornitura Servizi di Manutenzione;16-07-2018;140344;0;75;1;Spese correnti;3;Acquisto di beni e servizi;2;Acquisto di servizi;5;Utenze e canoni;999;Utenze e canoni per altri servizi n.a.c.;16-07-2018;
632;1;0;"3.500,00";"3.500,00";MAMMARELLA ANTONIO;ZEF210AEA2;SALDO Fatt.n. FATTPA 16_18  del 05/02/2018 LUMINARIE NATALIZIE;16-07-2018;110830;0;180;1;Spese correnti;3;Acquisto di beni e servizi;2;Acquisto di servizi;99;Altri servizi;999;Altri servizi diversi n.a.c.;16-07-2018;
633;1;0;"1.098,00";"1.098,00";CLIMATERM SRL;Z842085CA6;SALDO Fatt.n. 11  del 31/12/2017 MANUTENZIONE ORDINARIA CENTRALI TERMICHE;16-07-2018;140340;0;14;1;Spese correnti;3;Acquisto di beni e servizi;2;Acquisto di servizi;5;Utenze e canoni;999;Utenze e canoni per altri servizi n.a.c.;16-07-2018;
634;1;0;"21.915,13";"21.915,13";EURORESTAURI S.R.L.;68565289E4;SALDO Fatt.n. FATTPA 2_18  del 17/07/2018 Terzo e Ultimo Stato di Avanzamento dei Lavori di "COMPLETAMENTO MESSA IN SICUREZZA EDIFICIO SCOLASTICO DEL CAPOLUOGO";19-07-2018;240240;0;178;2;Spese in conto capitale;2;Investimenti fissi lordi e acquisto di terreni;1;Beni materiali;9;Beni immobili;3;Fabbricati ad uso scolastico;19-07-2018;
662;1;0;"618,17";"1.010,11";DI CARLO ORESTE NATO IL 20.12.959 A ROCCA S. GIOVANNI;ZEF2230EEC;SALDO Fatt.n. 1  del 12/01/2018 FERRAMENTA;20-07-2018;170224;0;75;1;Spese correnti;3;Acquisto di beni e servizi;1;Acquisto di beni;2;Altri beni di consumo;999;Altri beni e materiali di consumo n.a.c.;20-07-2018;
662;2;0;"391,94";"1.010,11";EUROLUX S.R.L.;ZEF2230EEC;SALDO Fatt.n. 18/466  del 30/04/2018 MATERIALE ELETTRICO;20-07-2018;170224;0;75;1;Spese correnti;3;Acquisto di beni e servizi;1;Acquisto di beni;2;Altri beni di consumo;999;Altri beni e materiali di consumo n.a.c.;20-07-2018;
663;1;0;"549,00";"549,00";BUTAN GAS;Z6E22330C9;SALDO Fatt.n. 6/265P  del 14/03/2018 G.P.L. PROPANO DI APRILE 2018;20-07-2018;161332;0;87;1;Spese correnti;3;Acquisto di beni e servizi;2;Acquisto di servizi;5;Utenze e canoni;6;Gas;20-07-2018;
664;1;0;"244,00";"244,00";FIND SERVICE GENIOLA S.R.L.;Z1C2232F46;SALDO Fatt.n. 2/001  del 29/03/2018 NOLO PIATTAFORMA;20-07-2018;170144;0;70;1;Spese correnti;3;Acquisto di beni e servizi;2;Acquisto di servizi;7;Utilizzo di beni di terzi;2;Noleggi di mezzi di trasporto;20-07-2018;
665;1;0;"965,83";"2.897,49";BLUE LINE SOC. COOP. SOCIALE;X0919A7161;SALDO Fatt.n. 11  del 31/01/2018 PULIZIA DEI LOCALI COMUNALI NEL MESE DI GENNAIO 2018;20-07-2018;110256;0;143;1;Spese correnti;3;Acquisto di beni e servizi;2;Acquisto di servizi;13;Servizi ausiliari per il funzionamento dell'ente;2;Servizi di pulizia e lavanderia;20-07-2018;
665;2;0;"965,83";"2.897,49";BLUE LINE SOC. COOP. SOCIALE;X0919A7161;SALDO Fatt.n. 63  del 28/02/2018 PULIZIA DEI LOCALI COMUNALI NEL MESE DI FEBBRAIO 2018;20-07-2018;110256;0;143;1;Spese correnti;3;Acquisto di beni e servizi;2;Acquisto di servizi;13;Servizi ausiliari per il funzionamento dell'ente;2;Servizi di pulizia e lavanderia;20-07-2018;
665;3;0;"965,83";"2.897,49";BLUE LINE SOC. COOP. SOCIALE;X0919A7161;SALDO Fatt.n. 136  del 31/03/2018 PULIZIA DEI LOCALI COMUNALI NEL MESE DI MARZO 2018;20-07-2018;110256;0;143;1;Spese correnti;3;Acquisto di beni e servizi;2;Acquisto di servizi;13;Servizi ausiliari per il funzionamento dell'ente;2;Servizi di pulizia e lavanderia;20-07-2018;
668;1;0;"2.312,50";"2.312,50";COMUNE DI FOSSACESIA; ;ACCONTO SPESA PER COMPETENZE CENTRALE UNICA DI COMMITTENZA ANNO 2018;25-07-2018;110264;0;165;1;Spese correnti;4;Trasferimenti correnti;1;Trasferimenti correnti a Amministrazioni Pubbliche;2;Trasferimenti correnti a Amministrazioni Locali;3;Trasferimenti correnti a Comuni;25-07-2018;
669;1;0;"10.141,53";"10.141,53";STUDIO BONA;Z211E55EE0;"SALDO Fatt.n. 5/PA  del 25/07/2018 PROGETTAZIONE E DIREZIONE LAVORI PER INTERVENTI DI VALORIZZAZIONE TURISTICA, SCIENTIFICA E INTEGRAZIONE DELLE RISERVE REGIONALI DELLA COSTA DEI TRABOCCHI E BACINI DEL SANGRO E SINELLO";25-07-2018;260214;0;241;2;Spese in conto capitale;2;Investimenti fissi lordi e acquisto di terreni;1;Beni materiali;10;"Beni immobili di valore culturale, storico ed artistico";999;"Beni immobili di valore culturale, storico ed artistico n.a.c.";25-07-2018;
670;1;0;"16,23";"19,21";AUTOSTRADE PER L'ITALIA;0;ACCONTO Fatt.n. 900015340D  del 30/07/2018 PEDAGGI AUTOSTRADALI LUGLIO 2018;31-07-2018;130132;0;56;1;Spese correnti;3;Acquisto di beni e servizi;2;Acquisto di servizi;13;Servizi ausiliari per il funzionamento dell'ente;999;Altri servizi ausiliari n.a.c.;31-07-2018;
670;2;0;"0,91";"19,21";BANCA POPOLARE DELL'EMILIA ROMAGNA; ;PEDAGGI AUTOSTRADALI;31-07-2018;130132;0;56;1;Spese correnti;3;Acquisto di beni e servizi;2;Acquisto di servizi;13;Servizi ausiliari per il funzionamento dell'ente;999;Altri servizi ausiliari n.a.c.;31-07-2018;
670;3;0;"2,07";"19,21";TELEPASS S.P.A.;0;ACCONTO Fatt.n. 900015419T  del 30/07/2018 CANONE TELEPASS LUGLIO 2018;31-07-2018;130132;0;56;1;Spese correnti;3;Acquisto di beni e servizi;2;Acquisto di servizi;13;Servizi ausiliari per il funzionamento dell'ente;999;Altri servizi ausiliari n.a.c.;31-07-2018;
671;1;0;"2.400,00";"2.400,00";VALTRIGNO; ;GESTIONE DEI SERVIZI CONNESSI ALLA BALNEAZIONE PER LA STAGIONE 2017-SECONDO SEMESTRE;31-07-2018;180640;0;112;1;Spese correnti;3;Acquisto di beni e servizi;2;Acquisto di servizi;9;Manutenzione ordinaria e riparazioni;12;Manutenzione ordinaria e riparazioni di terreni e beni materiali non prodotti;31-07-2018;
672;1;0;"2.000,00";"2.000,00";VALTRIGNO; ;CONVENZIONE CON L'ASSOCIAZIONE "VALTRIGNO" NUCLEO DI PROTEZIONE CIVILE;31-07-2018;161560;0;231;1;Spese correnti;4;Trasferimenti correnti;4;Trasferimenti correnti a Istituzioni Sociali Private;1;Trasferimenti correnti a Istituzioni Sociali Private;1;Trasferimenti correnti a Istituzioni Sociali Private;31-07-2018;
673;1;0;"26.391,04";"26.391,04";DE FIDELIBUS LEONELLO;Z0713ACC93;"SALDO Fatt.n. 01/PA  del 26/07/2018 ONORARI RELATIVI ALLA PROGETTAZIONE, DIREZIONE LAVORI, COORDINAMENTO SICUREZZA E RILIEVI OPERE DI URBANIZZAZIONE E PAVIMENTAZIONE VIA CESARE BATTISTI, LARGO OBERDAN E PARTE DI VIA OCCIDENTALE";31-07-2018;260122;0;75;2;Spese in conto capitale;2;Investimenti fissi lordi e acquisto di terreni;1;Beni materiali;9;Beni immobili;14;Opere per la sistemazione del suolo;31-07-2018;
674;1;0;"57,34";"165,49";E.N.E.L. SERVIZIO ELETTRICO S.P.A.;X37139C8F1;SALDO Fatt.n. 691065500330515  del 10/01/2018 ENERGIA ELETTRICA;31-07-2018;110636;0;95;1;Spese correnti;3;Acquisto di beni e servizi;2;Acquisto di servizi;5;Utenze e canoni;4;Energia elettrica;31-07-2018;
674;2;0;"108,15";"165,49";E.N.E.L. SERVIZIO ELETTRICO S.P.A.;X37139C8F1;SALDO Fatt.n. 691065313504014  del 10/01/2018 ENERGIA ELETTRICA;31-07-2018;110636;0;95;1;Spese correnti;3;Acquisto di beni e servizi;2;Acquisto di servizi;5;Utenze e canoni;4;Energia elettrica;31-07-2018;
675;1;0;"118,29";"118,29";E.N.E.L. SERVIZIO ELETTRICO S.P.A.;X37139C8F1;SALDO Fatt.n. 691065313504015  del 10/03/2018 ENERGIA ELETTRICA EX MATTATOIO;31-07-2018;110636;0;32;1;Spese correnti;3;Acquisto di beni e servizi;2;Acquisto di servizi;5;Utenze e canoni;4;Energia elettrica;31-07-2018;
676;1;0;"204,89";"204,89";E.N.E.L. SERVIZIO ELETTRICO S.P.A.; ;SALDO Fatt.n. 691065110702515  del 10/01/2018 ENERGIA ELETTRICA;31-07-2018;110638;0;48;1;Spese correnti;3;Acquisto di beni e servizi;2;Acquisto di servizi;5;Utenze e canoni;4;Energia elettrica;31-07-2018;
677;1;0;"178,32";"178,32";E.N.E.L. SERVIZIO ELETTRICO S.P.A.; ;SALDO Fatt.n. 691065110702516  del 10/03/2018 ENERGIA ELETTRICA OROLOGIO TORRE CIVICA;31-07-2018;110638;0;33;1;Spese correnti;3;Acquisto di beni e servizi;2;Acquisto di servizi;5;Utenze e canoni;4;Energia elettrica;31-07-2018;
678;1;0;"70,38";"70,38";E.N.E.L. SERVIZIO ELETTRICO S.P.A.;X37139C8F1;SALDO Fatt.n. 691065410012026  del 10/01/2018 ENERGIA ELETTRICA;31-07-2018;180530;0;107;1;Spese correnti;3;Acquisto di beni e servizi;2;Acquisto di servizi;5;Utenze e canoni;4;Energia elettrica;31-07-2018;
679;1;0;"63,46";"63,46";E.N.E.L. SERVIZIO ELETTRICO S.P.A.;X37139C8F1;SALDO Fatt.n. 691065380301018  del 10/01/2018 ENERGIA ELETTRICA;31-07-2018;140246;0;98;1;Spese correnti;3;Acquisto di beni e servizi;2;Acquisto di servizi;5;Utenze e canoni;4;Energia elettrica;31-07-2018;
680;1;0;"-342,28";"121,85";E.N.E.L. SERVIZIO ELETTRICO S.P.A.;X37139C8F1;SALDO Fatt.n. 69106511070201A  del 18/01/2017 ENERGIA ELETTRICA - UFFICIO;31-07-2018;160132;0;99;1;Spese correnti;3;Acquisto di beni e servizi;2;Acquisto di servizi;5;Utenze e canoni;4;Energia elettrica;31-07-2018;
680;2;0;"48,95";"121,85";E.N.E.L. SERVIZIO ELETTRICO S.P.A.;X37139C8F1;SALDO Fatt.n. 691065500330516  del 10/03/2018 ENERGIA ELETTRICA;31-07-2018;160132;0;99;1;Spese correnti;3;Acquisto di beni e servizi;2;Acquisto di servizi;5;Utenze e canoni;4;Energia elettrica;31-07-2018;
680;3;0;"60,98";"121,85";E.N.E.L. SERVIZIO ELETTRICO S.P.A.;X37139C8F1;SALDO Fatt.n. 691065380301019  del 10/03/2018 ENERGIA ELETTRICA;31-07-2018;160132;0;99;1;Spese correnti;3;Acquisto di beni e servizi;2;Acquisto di servizi;5;Utenze e canoni;4;Energia elettrica;31-07-2018;
680;4;0;"67,64";"121,85";E.N.E.L. SERVIZIO ELETTRICO S.P.A.;X37139C8F1;SALDO Fatt.n. 691065500331038  del 10/03/2018 ENERGIA ELETTRICA VALLEVO' FEB.-MAR.2018;31-07-2018;160132;0;99;1;Spese correnti;3;Acquisto di beni e servizi;2;Acquisto di servizi;5;Utenze e canoni;4;Energia elettrica;31-07-2018;
680;5;0;"67,64";"121,85";E.N.E.L. SERVIZIO ELETTRICO S.P.A.;X37139C8F1;SALDO Fatt.n. 691065410012027  del 10/03/2018 ENERGIA ELETTRICA;31-07-2018;160132;0;99;1;Spese correnti;3;Acquisto di beni e servizi;2;Acquisto di servizi;5;Utenze e canoni;4;Energia elettrica;31-07-2018;
680;6;0;"72,66";"121,85";E.N.E.L. SERVIZIO ELETTRICO S.P.A.;X37139C8F1;SALDO Fatt.n. 691065500331037  del 10/01/2018 ENERGIA ELETTRICA CENTRO DOC.AMBIENTALE DIC.2017-GEN.2018;31-07-2018;160132;0;99;1;Spese correnti;3;Acquisto di beni e servizi;2;Acquisto di servizi;5;Utenze e canoni;4;Energia elettrica;31-07-2018;
680;7;0;"73,13";"121,85";E.N.E.L. SERVIZIO ELETTRICO S.P.A.;X37139C8F1;SALDO Fatt.n. 691065500331035  del 10/09/2017 ENERGIA ELETTRICA CENTRO DOCUMENTAZIONE AMBIENTALE;31-07-2018;160132;0;99;1;Spese correnti;3;Acquisto di beni e servizi;2;Acquisto di servizi;5;Utenze e canoni;4;Energia elettrica;31-07-2018;
680;8;0;"73,13";"121,85";E.N.E.L. SERVIZIO ELETTRICO S.P.A.;X37139C8F1;SALDO Fatt.n. 691065500331036  del 09/11/2017 ENERGIA ELETTRICA CENTRO DOCUMENTAZIONE AMBIENTALE;31-07-2018;160132;0;99;1;Spese correnti;3;Acquisto di beni e servizi;2;Acquisto di servizi;5;Utenze e canoni;4;Energia elettrica;31-07-2018;
681;1;0;"173,94";"502,21";E.N.E.L. SERVIZIO ELETTRICO S.P.A.;X37139C8F1;SALDO Fatt.n. 691065280311516  del 10/03/2018 ENERGIA ELETTRICA ELETTROPOMPA VIA OCCIDENTALE FEB.-MAR.2018;31-07-2018;160810;0;101;1;Spese correnti;3;Acquisto di beni e servizi;2;Acquisto di servizi;5;Utenze e canoni;4;Energia elettrica;31-07-2018;
681;2;0;"328,27";"502,21";E.N.E.L. SERVIZIO ELETTRICO S.P.A.;X37139C8F1;SALDO Fatt.n. 691065500518515  del 10/03/2018 ENERGIA ELETTRICA DEPURATORE VALLEVO' FEB.-MAR.2018;31-07-2018;160810;0;101;1;Spese correnti;3;Acquisto di beni e servizi;2;Acquisto di servizi;5;Utenze e canoni;4;Energia elettrica;31-07-2018;
684;1;0;"1.067,61";"1.067,61";COMUNE DI ROCCA SAN GIOVANNI;68565289E4;COMPLETAMENTO DELLA MESSA IN SICUREZZA DIFICIO SCOLASTICO "CAPOLUOGO" - INNOVAZIONE E ACCRESCIMENTO EFFICIENZA ENTE;01-08-2018;240240;0;178;2;Spese in conto capitale;2;Investimenti fissi lordi e acquisto di terreni;1;Beni materiali;9;Beni immobili;3;Fabbricati ad uso scolastico;01-08-2018;
685;1;0;"266,47";"266,47";COMUNE DI ROCCA SAN GIOVANNI;68565289E4;COMPLETAMENTO DELLA MESSA IN SICUREZZA DIFICIO SCOLASTICO "CAPOLUOGO" - INNOVAZIONE E ACCRESCIMENTO EFFICIENZA ENTE;01-08-2018;240240;0;178;2;Spese in conto capitale;2;Investimenti fissi lordi e acquisto di terreni;1;Beni materiali;9;Beni immobili;3;Fabbricati ad uso scolastico;01-08-2018;
686;1;0;"3.001,68";"3.001,68";COMUNE DI ROCCA SAN GIOVANNI;68565289E4;COMPLETAMENTO DELLA MESSA IN SICUREZZA DIFICIO SCOLASTICO "CAPOLUOGO" - COMPENSO RUP;01-08-2018;240240;0;178;2;Spese in conto capitale;2;Investimenti fissi lordi e acquisto di terreni;1;Beni materiali;9;Beni immobili;3;Fabbricati ad uso scolastico;01-08-2018;
697;1;0;"18.451,06";"36.902,12";RIECO SPA;3475364917;SALDO Fatt.n. 170809  del 31/10/2017 SMALTIMENTO DEI RIFIUTI URBANI DI OTTOBRE 2017;01-08-2018;160948;0;87;1;Spese correnti;3;Acquisto di beni e servizi;2;Acquisto di servizi;15;Contratti di servizio pubblico;5;Contratti di servizio per il conferimento in discarica dei rifiuti;01-08-2018;
697;2;0;"18.451,06";"36.902,12";RIECO SPA;3475364917;SALDO Fatt.n. 170898  del 30/11/2017 RACCOLTA E TRASPORTO RSU NOVEMBRE 2017;01-08-2018;160948;0;87;1;Spese correnti;3;Acquisto di beni e servizi;2;Acquisto di servizi;15;Contratti di servizio pubblico;5;Contratti di servizio per il conferimento in discarica dei rifiuti;01-08-2018;
698;1;0;"18.451,06";"18.451,06";RIECO SPA;3475364917;SALDO Fatt.n. 170986  del 31/12/2017 SERVIZIO DI RACCOLTA TA.R.S.U. DI DICEMBRE 2017;01-08-2018;160948;0;87;1;Spese correnti;3;Acquisto di beni e servizi;2;Acquisto di servizi;15;Contratti di servizio pubblico;5;Contratti di servizio per il conferimento in discarica dei rifiuti;01-08-2018;
699;1;0;"1.597,15";"3.419,25";RIECO SPA;3475364917;SALDO Fatt.n. 170975  del 30/11/2017 ALLEGATO "D" DISCIPLINARE DI NOVEMBRE 2017;01-08-2018;160944;0;92;1;Spese correnti;3;Acquisto di beni e servizi;2;Acquisto di servizi;15;Contratti di servizio pubblico;5;Contratti di servizio per il conferimento in discarica dei rifiuti;01-08-2018;
699;2;0;"1.822,10";"3.419,25";RIECO SPA;3475364917;SALDO Fatt.n. 171032  del 31/12/2017 NOLEGGIO CASSONI ALL. DISCIPLINARE "D"  MESE DI DICEMBRE 2017;01-08-2018;160944;0;92;1;Spese correnti;3;Acquisto di beni e servizi;2;Acquisto di servizi;15;Contratti di servizio pubblico;5;Contratti di servizio per il conferimento in discarica dei rifiuti;01-08-2018;
700;1;0;"1.966,69";"11.485,51";CONSORZIO COMPRENSORIALE SMALTIMENTO.ECO.LAN. S.P.A.;Z7B220424F;SALDO Fatt.n. 100224  del 28/02/2018 RIFIUTI CER 200108 DI FEBBRAIO  2018;01-08-2018;160944;0;85;1;Spese correnti;3;Acquisto di beni e servizi;2;Acquisto di servizi;15;Contratti di servizio pubblico;5;Contratti di servizio per il conferimento in discarica dei rifiuti;01-08-2018;
700;2;0;"2.653,53";"11.485,51";CONSORZIO COMPRENSORIALE SMALTIMENTO.ECO.LAN. S.P.A.;Z7B220424F;SALDO Fatt.n. 100154  del 28/02/2018 RIFIUTI SOLIDI URBANI INDIFFERENZIATI  DI FEBBRAIO 2018;01-08-2018;160944;0;85;1;Spese correnti;3;Acquisto di beni e servizi;2;Acquisto di servizi;15;Contratti di servizio pubblico;5;Contratti di servizio per il conferimento in discarica dei rifiuti;01-08-2018;
700;3;0;"6.865,29";"11.485,51";CONSORZIO COMPRENSORIALE SMALTIMENTO.ECO.LAN. S.P.A.;Z7B220424F;SALDO Fatt.n. 100300  del 31/03/2018 RIFIUTI CER 200108 DI MARZO 2018;01-08-2018;160944;0;85;1;Spese correnti;3;Acquisto di beni e servizi;2;Acquisto di servizi;15;Contratti di servizio pubblico;5;Contratti di servizio per il conferimento in discarica dei rifiuti;01-08-2018;
727;1;0;"3.980,86";"3.980,86";STUDIO BONA;Z211E55EE0;SALDO Fatt.n. 4/PA  del 05/06/2018 CONSULTENZA UFFICIO TECNICO APRILE-GIUGNO 2018;09-08-2018;110336;0;82;1;Spese correnti;3;Acquisto di beni e servizi;2;Acquisto di servizi;10;Consulenze;1;"Incarichi libero professionali di studi, ricerca e consulenza";09-08-2018;
730;1;0;"11,07";"55,88";AUTOSTRADE PER L'ITALIA;0;ACCONTO Fatt.n. 900017471D  del 30/08/2018;04-09-2018;130132;0;56;1;Spese correnti;3;Acquisto di beni e servizi;2;Acquisto di servizi;13;Servizi ausiliari per il funzionamento dell'ente;999;Altri servizi ausiliari n.a.c.;04-09-2018;
730;2;0;"38,85";"55,88";AUTOSTRADE PER L'ITALIA;0;ACCONTO Fatt.n. 900013049D  del 30/06/2018 PEDAGGI ATOSTRADALI MESE DI GIUGNO 2018;04-09-2018;130132;0;56;1;Spese correnti;3;Acquisto di beni e servizi;2;Acquisto di servizi;13;Servizi ausiliari per il funzionamento dell'ente;999;Altri servizi ausiliari n.a.c.;04-09-2018;
730;3;0;"0,91";"55,88";BANCA POPOLARE DELL'EMILIA ROMAGNA; ;PEDAGGI AUTOSTRADALI;04-09-2018;130132;0;56;1;Spese correnti;3;Acquisto di beni e servizi;2;Acquisto di servizi;13;Servizi ausiliari per il funzionamento dell'ente;999;Altri servizi ausiliari n.a.c.;04-09-2018;
730;4;0;"0,91";"55,88";BANCA POPOLARE DELL'EMILIA ROMAGNA; ;PEDAGGI AUTOSTRADALI;04-09-2018;130132;0;56;1;Spese correnti;3;Acquisto di beni e servizi;2;Acquisto di servizi;13;Servizi ausiliari per il funzionamento dell'ente;999;Altri servizi ausiliari n.a.c.;04-09-2018;
730;5;0;"2,07";"55,88";TELEPASS S.P.A.;0;ACCONTO Fatt.n. 900013153T  del 30/06/2018;04-09-2018;130132;0;56;1;Spese correnti;3;Acquisto di beni e servizi;2;Acquisto di servizi;13;Servizi ausiliari per il funzionamento dell'ente;999;Altri servizi ausiliari n.a.c.;04-09-2018;
730;6;0;"2,07";"55,88";TELEPASS S.P.A.;0;ACCONTO Fatt.n. 900017538T  del 30/08/2018;04-09-2018;130132;0;56;1;Spese correnti;3;Acquisto di beni e servizi;2;Acquisto di servizi;13;Servizi ausiliari per il funzionamento dell'ente;999;Altri servizi ausiliari n.a.c.;04-09-2018;
731;1;0;"1.888,75";"1.888,75";D'ANGELO GIOVANNI; ;Indennita' di funzione Vice-Sindaco gen.-ago.2018;04-09-2018;110134;0;162;1;Spese correnti;3;Acquisto di beni e servizi;2;Acquisto di servizi;1;Organi e incarichi istituzionali dell'amministrazione;1;Organi istituzionali dell'amministrazione - Indennit�;04-09-2018;
732;1;0;"1.561,76";"1.561,76";MARTELLI DOMENICO; ;Indennita di funzione gen.-ago.2018;04-09-2018;110134;0;163;1;Spese correnti;3;Acquisto di beni e servizi;2;Acquisto di servizi;1;Organi e incarichi istituzionali dell'amministrazione;1;Organi istituzionali dell'amministrazione - Indennit�;04-09-2018;
733;1;0;"1.484,67";"3.194,29";RIECO SPA;Z7B220424F;SALDO Fatt.n. 180171  del 28/02/2018 NOLEGGIO CASSONI ALL. "D" DI FEBBRAIO  2018;04-09-2018;160944;0;92;1;Spese correnti;3;Acquisto di beni e servizi;2;Acquisto di servizi;15;Contratti di servizio pubblico;5;Contratti di servizio per il conferimento in discarica dei rifiuti;04-09-2018;
733;2;0;"1.709,62";"3.194,29";RIECO SPA;Z7B220424F;SALDO Fatt.n. 180057  del 31/01/2018 NOLEGGIO CASSONI ALL. "D" DI GENNAIO 2018;04-09-2018;160944;0;92;1;Spese correnti;3;Acquisto di beni e servizi;2;Acquisto di servizi;15;Contratti di servizio pubblico;5;Contratti di servizio per il conferimento in discarica dei rifiuti;04-09-2018;
734;1;0;"18.602,95";"56.568,29";RIECO SPA;3475364917;SALDO Fatt.n. 180103  del 28/02/2018 RACCOLTA T.A.R.S.U. DI FEBBRAIO  2018;04-09-2018;160948;0;83;1;Spese correnti;3;Acquisto di beni e servizi;2;Acquisto di servizi;15;Contratti di servizio pubblico;5;Contratti di servizio per il conferimento in discarica dei rifiuti;04-09-2018;
734;2;0;"18.602,95";"56.568,29";RIECO SPA;3475364917;SALDO Fatt.n. 180192  del 31/03/2018 RACCOLTA T.A.R.S.U. DI MARZO 2018;04-09-2018;160948;0;83;1;Spese correnti;3;Acquisto di beni e servizi;2;Acquisto di servizi;15;Contratti di servizio pubblico;5;Contratti di servizio per il conferimento in discarica dei rifiuti;04-09-2018;
734;3;0;"19.362,39";"56.568,29";RIECO SPA;3475364917;SALDO Fatt.n. 180011  del 31/01/2018 RACCOLTA T.A.R.S.U. DI GENNAIO 2018;04-09-2018;160948;0;83;1;Spese correnti;3;Acquisto di beni e servizi;2;Acquisto di servizi;15;Contratti di servizio pubblico;5;Contratti di servizio per il conferimento in discarica dei rifiuti;04-09-2018;
735;1;0;"794,00";"794,00";ANXA ENERGY SRL;Z5220E508C;SALDO Fatt.n. B/69  del 31/05/2018 GASOLIO E SUPER DI MAGGIO 2018;04-09-2018;170108;0;183;1;Spese correnti;3;Acquisto di beni e servizi;1;Acquisto di beni;2;Altri beni di consumo;2;"Carburanti, combustibili e lubrificanti";04-09-2018;
736;1;0;"477,14";"477,14";DI CARLO ORESTE NATO IL 20.12.959 A ROCCA S. GIOVANNI;Z7C21E961D;SALDO Fatt.n. 3  del 23/05/2018 FERRAMENTA;04-09-2018;170112;0;66;1;Spese correnti;3;Acquisto di beni e servizi;1;Acquisto di beni;2;Altri beni di consumo;999;Altri beni e materiali di consumo n.a.c.;04-09-2018;
737;1;0;"9.801,00";"9.801,00";IEZZI TRAVEL SRL;6770169831;SALDO Fatt.n. FATTPA 24_18  del 30/04/2018 TRASPORTO SCOLASTICO DI APRILE 2018;04-09-2018;140448;0;223;1;Spese correnti;3;Acquisto di beni e servizi;2;Acquisto di servizi;15;Contratti di servizio pubblico;2;Contratti di servizio di trasporto scolastico;04-09-2018;
738;1;0;"585,60";"585,60";MORETTI CRISTIAN;Z8E222F6BD;SALDO Fatt.n. 02PA  del 15/03/2018 PIETRISCO DI MONTAGNA;04-09-2018;270116;0;69;2;Spese in conto capitale;2;Investimenti fissi lordi e acquisto di terreni;1;Beni materiali;99;Altri beni materiali;999;Altri beni materiali diversi;04-09-2018;
739;1;0;"9.801,00";"9.801,00";IEZZI TRAVEL SRL;6770169831;SALDO Fatt.n. FATTPA 34_18  del 31/05/2018 TRASPORTO SCOLASTICO DI MAGGIO 2018;04-09-2018;140448;0;223;1;Spese correnti;3;Acquisto di beni e servizi;2;Acquisto di servizi;15;Contratti di servizio pubblico;2;Contratti di servizio di trasporto scolastico;04-09-2018;
743;1;0;"183,00";"183,00";AMBIQ S.R.L.;ZE2237CF85;SALDO Fatt.n. 37/2018  del 31/01/2018 DERATTIZZAZIONE E DISINFESTAZIONE;07-09-2018;161232;0;121;1;Spese correnti;3;Acquisto di beni e servizi;2;Acquisto di servizi;15;Contratti di servizio pubblico;999;Altre spese per contratti di servizio pubblico;07-09-2018;
744;1;0;"822,70";"822,70";A.N.A.S.;Z1C2232F46;SALDO Fatt.n. 0074004029  del 18/12/2017 CONCESSIONE DI ATTRAVERSAMENTO;07-09-2018;170138;0;95;1;Spese correnti;3;Acquisto di beni e servizi;2;Acquisto di servizi;9;Manutenzione ordinaria e riparazioni;8;Manutenzione ordinaria e riparazioni di beni immobili;07-09-2018;
745;1;0;"3.904,00";"3.904,00";CLIMATERM SRL;Z83219C888;SALDO Fatt.n. 6  del 31/01/2018 SOSTITUZIONE CANNA FUMARIA SEDE COMUNALE;07-09-2018;170112;0;15;1;Spese correnti;3;Acquisto di beni e servizi;1;Acquisto di beni;2;Altri beni di consumo;999;Altri beni e materiali di consumo n.a.c.;07-09-2018;
746;1;0;"830,33";"830,33";DI BIASE D. & C. S.N.C.;Z7C21E961D;SALDO Fatt.n. 1/PA  del 31/01/2018 MANUT. CAMPO SPORTIVO E MUNICIPIO - MATERIALE IDROTERMOSANITARIO;07-09-2018;140210;0;68;1;Spese correnti;3;Acquisto di beni e servizi;1;Acquisto di beni;2;Altri beni di consumo;999;Altri beni e materiali di consumo n.a.c.;07-09-2018;
748;1;0;"4.650,67";"4.650,67";LABOR  SOC. COOP. A R.L.;Z19219F484;SALDO Fatt.n. 84/PA  del 27/04/2018 SERVIZIO REFEZIONE SCOLASTICA_APRILE 2018_;17-09-2018;140444;0;1;1;Spese correnti;3;Acquisto di beni e servizi;2;Acquisto di servizi;15;Contratti di servizio pubblico;6;Contratti di servizio per le mense scolastiche;17-09-2018;
749;1;0;"965,83";"965,83";BLUE LINE SOC. COOP. SOCIALE;X0919A7161;SALDO Fatt.n. 179  del 30/04/2018 PULIZIA DEI LOCALI COMUNALI NEL MESE DI APRILE 2018;17-09-2018;110256;0;143;1;Spese correnti;3;Acquisto di beni e servizi;2;Acquisto di servizi;13;Servizi ausiliari per il funzionamento dell'ente;2;Servizi di pulizia e lavanderia;17-09-2018;
750;1;0;"557,61";"557,61";AGRI 2000 S.R.L.;ZB32230D75;SALDO Fatt.n. 1/PA  del 16/05/2018 DECESPUGLIATORE E OLIO;17-09-2018;170112;0;71;1;Spese correnti;3;Acquisto di beni e servizi;1;Acquisto di beni;2;Altri beni di consumo;999;Altri beni e materiali di consumo n.a.c.;17-09-2018;
751;1;0;"111,70";"111,70";EDIF SPA;ZEF2230EEC;SALDO Fatt.n. 000324  del 31/05/2018 MATERIALE ELETTRICO;17-09-2018;170224;0;75;1;Spese correnti;3;Acquisto di beni e servizi;1;Acquisto di beni;2;Altri beni di consumo;999;Altri beni e materiali di consumo n.a.c.;17-09-2018;
752;1;0;"109,80";"109,80";FIND SERVICE GENIOLA S.R.L.;Z1C2232F46;SALDO Fatt.n. 4/001  del 30/05/2018 NOLEGGIO PIATTAFORMA;17-09-2018;170144;0;70;1;Spese correnti;3;Acquisto di beni e servizi;2;Acquisto di servizi;7;Utilizzo di beni di terzi;2;Noleggi di mezzi di trasporto;17-09-2018;
753;1;0;"43,74";"679,06";E.N.E.L. ENERGIA S.P.A.;X9617FD504;SALDO Fatt.n. 004810587195  del 08/04/2018 VIA FOCE;17-09-2018;180530;0;38;1;Spese correnti;3;Acquisto di beni e servizi;2;Acquisto di servizi;5;Utenze e canoni;4;Energia elettrica;17-09-2018;
753;2;0;"74,01";"679,06";E.N.E.L. ENERGIA S.P.A.;X37139C8F1;SALDO Fatt.n. 004810585614  del 08/04/2018 VIA SAN GIACOMO 12;17-09-2018;180530;0;38;1;Spese correnti;3;Acquisto di beni e servizi;2;Acquisto di servizi;5;Utenze e canoni;4;Energia elettrica;17-09-2018;
753;3;0;"110,53";"679,06";E.N.E.L. ENERGIA S.P.A.;X9617FD504;SALDO Fatt.n. 004810627068  del 13/04/2018 VIA PIANE FAVARO 36;17-09-2018;180530;0;38;1;Spese correnti;3;Acquisto di beni e servizi;2;Acquisto di servizi;5;Utenze e canoni;4;Energia elettrica;17-09-2018;
753;4;0;"161,33";"679,06";E.N.E.L. ENERGIA S.P.A.;X37139C8F1;SALDO Fatt.n. 004810585615  del 08/04/2018 VIA OCCIDENTALE 31;17-09-2018;180530;0;38;1;Spese correnti;3;Acquisto di beni e servizi;2;Acquisto di servizi;5;Utenze e canoni;4;Energia elettrica;17-09-2018;
753;5;0;"289,45";"679,06";E.N.E.L. ENERGIA S.P.A.;X37139C8F1;SALDO Fatt.n. 004810609865  del 12/04/2018 VIA VALLEVO';17-09-2018;180530;0;38;1;Spese correnti;3;Acquisto di beni e servizi;2;Acquisto di servizi;5;Utenze e canoni;4;Energia elettrica;17-09-2018;
754;1;0;"68,03";"632,68";E.N.E.L. ENERGIA S.P.A.;X37139C8F1;SALDO Fatt.n. 004810587205  del 08/04/2018 VIA STERPARI;17-09-2018;180636;0;39;1;Spese correnti;3;Acquisto di beni e servizi;2;Acquisto di servizi;5;Utenze e canoni;4;Energia elettrica;17-09-2018;
754;2;0;"564,65";"632,68";E.N.E.L. ENERGIA S.P.A.; ;SALDO Fatt.n. 004810582838  del 08/04/2018 CONTRADA STERPARI;17-09-2018;180636;0;39;1;Spese correnti;3;Acquisto di beni e servizi;2;Acquisto di servizi;5;Utenze e canoni;4;Energia elettrica;17-09-2018;
755;1;0;"412,99";"412,99";E.N.E.L. ENERGIA S.P.A.;X37139C8F1;SALDO Fatt.n. 004810587202  del 08/04/2018 VIA PERAZZA;17-09-2018;161332;0;37;1;Spese correnti;3;Acquisto di beni e servizi;2;Acquisto di servizi;5;Utenze e canoni;4;Energia elettrica;17-09-2018;
756;1;0;"204,90";"204,90";E.N.E.L. ENERGIA S.P.A.;X9617FD504;SALDO Fatt.n. 004810585613  del 08/04/2018 VIA CODACCHIE;17-09-2018;161320;0;36;1;Spese correnti;3;Acquisto di beni e servizi;2;Acquisto di servizi;5;Utenze e canoni;4;Energia elettrica;17-09-2018;
757;1;0;"925,87";"925,87";E.N.E.L. ENERGIA S.P.A.;X9617FD504;SALDO Fatt.n. 004810587201  del 08/04/2018 VIALE PAOLUCCI;17-09-2018;140246;0;34;1;Spese correnti;3;Acquisto di beni e servizi;2;Acquisto di servizi;5;Utenze e canoni;4;Energia elettrica;17-09-2018;
758;1;0;"625,69";"625,69";E.N.E.L. ENERGIA S.P.A.;X37139C8F1;SALDO Fatt.n. 004810589958  del 08/04/2018 PIAZZA DEGLI EROI;17-09-2018;110834;0;97;1;Spese correnti;3;Acquisto di beni e servizi;2;Acquisto di servizi;5;Utenze e canoni;4;Energia elettrica;17-09-2018;
759;1;0;"113,96";"464,36";E.N.E.L. ENERGIA S.P.A.;X37139C8F1;SALDO Fatt.n. 004810587193  del 08/04/2018 VIA MAZZINI;17-09-2018;160810;0;101;1;Spese correnti;3;Acquisto di beni e servizi;2;Acquisto di servizi;5;Utenze e canoni;4;Energia elettrica;17-09-2018;
759;2;0;"128,99";"464,36";E.N.E.L. ENERGIA S.P.A.;X37139C8F1;SALDO Fatt.n. 004810589970  del 08/04/2018 VIA CESARE BATTISTI;17-09-2018;160810;0;101;1;Spese correnti;3;Acquisto di beni e servizi;2;Acquisto di servizi;5;Utenze e canoni;4;Energia elettrica;17-09-2018;
759;3;0;"221,41";"464,36";E.N.E.L. ENERGIA S.P.A.;X37139C8F1;SALDO Fatt.n. 004810589968  del 08/04/2018 VIALE PAOLUCCI;17-09-2018;160810;0;101;1;Spese correnti;3;Acquisto di beni e servizi;2;Acquisto di servizi;5;Utenze e canoni;4;Energia elettrica;17-09-2018;
760;1;0;"52,06";"52,06";E.N.E.L. ENERGIA S.P.A.;X37139C8F1;SALDO Fatt.n. 004810585617  del 08/04/2018 VIA MAZZINI;17-09-2018;160646;0;100;1;Spese correnti;3;Acquisto di beni e servizi;2;Acquisto di servizi;5;Utenze e canoni;4;Energia elettrica;17-09-2018;
761;1;0;"175,62";"175,62";E.N.E.L. ENERGIA S.P.A.;X37139C8F1;SALDO Fatt.n. 004810581048  del 08/04/2018 ILLUMINAZIONE PUBBLICA;17-09-2018;170236;0;105;1;Spese correnti;3;Acquisto di beni e servizi;2;Acquisto di servizi;5;Utenze e canoni;4;Energia elettrica;17-09-2018;
762;1;0;"66,26";"134,82";E.N.E.L. ENERGIA S.P.A.;X37139C8F1;SALDO Fatt.n. 004810585616  del 08/04/2018 VICOLO PORTICO 19;17-09-2018;110636;0;32;1;Spese correnti;3;Acquisto di beni e servizi;2;Acquisto di servizi;5;Utenze e canoni;4;Energia elettrica;17-09-2018;
762;2;0;"68,56";"134,82";E.N.E.L. ENERGIA S.P.A.;X9617FD504;SALDO Fatt.n. 004810589964  del 08/04/2018 VIA SCALZINO 20;17-09-2018;110636;0;32;1;Spese correnti;3;Acquisto di beni e servizi;2;Acquisto di servizi;5;Utenze e canoni;4;Energia elettrica;17-09-2018;
763;1;0;"12.268,00";"12.268,00";BELLISARIO VINCENZO; ;COSTITUZIONE DIRITTO DI SUPERFICIE SU TERRENO AGRICOLO - IMPEGNO DI SPESA E LIQUIDAZIONE CORRISPETTIVO ALLA DITTA  PROPRIETARIA;17-09-2018;280644;0;127;2;Spese in conto capitale;2;Investimenti fissi lordi e acquisto di terreni;1;Beni materiali;9;Beni immobili;999;Beni immobili n.a.c.;17-09-2018;
764;1;0;"850,00";"850,00";D'ANGELO ANTONIO S.R.L.;Z3D238C253;ACCONTO Fatt.n. 11/18 FE  del 31/05/2018;17-09-2018;140140;0;119;1;Spese correnti;3;Acquisto di beni e servizi;1;Acquisto di beni;2;Altri beni di consumo;999;Altri beni e materiali di consumo n.a.c.;17-09-2018;
765;1;0;"370,00";"370,00";D'ANGELO ANTONIO S.R.L.;Z3D238C253;SALDO Fatt.n. 11/18 FE  del 31/05/2018;17-09-2018;140210;0;120;1;Spese correnti;3;Acquisto di beni e servizi;1;Acquisto di beni;2;Altri beni di consumo;999;Altri beni e materiali di consumo n.a.c.;17-09-2018;
766;1;0;"280,60";"981,44";DI CARLO ORESTE NATO IL 20.12.959 A ROCCA S. GIOVANNI;Z7C21E961D;SALDO Fatt.n. 4  del 11/07/2018 ACQUISTO LAMPADE NEON E LED;17-09-2018;170112;0;66;1;Spese correnti;3;Acquisto di beni e servizi;1;Acquisto di beni;2;Altri beni di consumo;999;Altri beni e materiali di consumo n.a.c.;17-09-2018;
766;2;0;"63,05";"981,44";ETERNEDILE SPA;Z7C21E961D;SALDO Fatt.n. VP-106  del 30/04/2018 MATERIALE EDILE;17-09-2018;170112;0;66;1;Spese correnti;3;Acquisto di beni e servizi;1;Acquisto di beni;2;Altri beni di consumo;999;Altri beni e materiali di consumo n.a.c.;17-09-2018;
766;3;0;"114,20";"981,44";ETERNEDILE SPA;Z7C21E961D;SALDO Fatt.n. VP-155  del 31/05/2018 MATERIALE EDILE;17-09-2018;170112;0;66;1;Spese correnti;3;Acquisto di beni e servizi;1;Acquisto di beni;2;Altri beni di consumo;999;Altri beni e materiali di consumo n.a.c.;17-09-2018;
766;4;0;"132,85";"981,44";ETERNEDILE SPA;Z7C21E961D;SALDO Fatt.n. VP-82  del 31/03/2018 MATERIALE EDILE;17-09-2018;170112;0;66;1;Spese correnti;3;Acquisto di beni e servizi;1;Acquisto di beni;2;Altri beni di consumo;999;Altri beni e materiali di consumo n.a.c.;17-09-2018;
766;5;0;"172,23";"981,44";ETERNEDILE SPA;Z7C21E961D;SALDO Fatt.n. VP-192  del 30/06/2018 MATERIALE EDILE;17-09-2018;170112;0;66;1;Spese correnti;3;Acquisto di beni e servizi;1;Acquisto di beni;2;Altri beni di consumo;999;Altri beni e materiali di consumo n.a.c.;17-09-2018;
766;6;0;"218,51";"981,44";ETERNEDILE SPA;Z7C21E961D;SALDO Fatt.n. VP-107  del 30/04/2018 MATERIALE EDILE;17-09-2018;170112;0;66;1;Spese correnti;3;Acquisto di beni e servizi;1;Acquisto di beni;2;Altri beni di consumo;999;Altri beni e materiali di consumo n.a.c.;17-09-2018;
767;1;0;"3.916,00";"3.916,00";Piemme S.r.l.s.;ZE023ACEB0;SALDO Fatt.n. 1/PA/2018  del 06/08/2018 LAVORI EDIFICIO SCOLASTICO;17-09-2018;240240;0;178;2;Spese in conto capitale;2;Investimenti fissi lordi e acquisto di terreni;1;Beni materiali;9;Beni immobili;3;Fabbricati ad uso scolastico;17-09-2018;
791;1;0;"71.757,44";"71.757,44";TENAGLIA SRL;718731257D;ACCONTO Fatt.n. 27/04  del 30/07/2018 LAVORI PAVIMENTAZIONE CENTRO STORICO I SAL;24-09-2018;260122;0;234;2;Spese in conto capitale;2;Investimenti fissi lordi e acquisto di terreni;1;Beni materiali;9;Beni immobili;14;Opere per la sistemazione del suolo;24-09-2018;
792;1;0;"17.790,56";"17.790,56";TENAGLIA SRL; ;SALDO Fatt.n. 27/04  del 30/07/2018 LAVORI PAVIMENTAZIONE CENTRO STORICO I SAL;24-09-2018;260122;0;237;2;Spese in conto capitale;2;Investimenti fissi lordi e acquisto di terreni;1;Beni materiali;9;Beni immobili;999;Beni immobili n.a.c.;24-09-2018;
793;1;0;"605,00";"605,00";MEDIASS S.P.A.;Z8624EEE53;POLIZZA ASSICURATIVA INFORTUNIO ALUNNI SCUOLA PRIMARIA E SECONDARIA;24-09-2018;140438;0;176;1;Spese correnti;10;Altre spese correnti;4;Premi di assicurazione;1;Premi di assicurazione contro i danni;999;Altri premi di assicurazione contro i danni;24-09-2018;
794;1;0;"30,60";"780,95";EUROLUX S.R.L.;ZEF2230EEC;SALDO Fatt.n. 18/762  del 30/06/2018 MATERIALE ELETTRICO;24-09-2018;170224;0;75;1;Spese correnti;3;Acquisto di beni e servizi;1;Acquisto di beni;2;Altri beni di consumo;999;Altri beni e materiali di consumo n.a.c.;24-09-2018;
794;2;0;"122,32";"780,95";EUROLUX S.R.L.;ZEF2230EEC;SALDO Fatt.n. 18/1041  del 31/08/2018 MATERIALE ELETTRICO;24-09-2018;170224;0;75;1;Spese correnti;3;Acquisto di beni e servizi;1;Acquisto di beni;2;Altri beni di consumo;999;Altri beni e materiali di consumo n.a.c.;24-09-2018;
794;3;0;"173,47";"780,95";EUROLUX S.R.L.;ZEF2230EEC;SALDO Fatt.n. 18/614  del 31/05/2018 MATERIALE ELETTRICO;24-09-2018;170224;0;75;1;Spese correnti;3;Acquisto di beni e servizi;1;Acquisto di beni;2;Altri beni di consumo;999;Altri beni e materiali di consumo n.a.c.;24-09-2018;
794;4;0;"454,56";"780,95";EUROLUX S.R.L.;ZEF2230EEC;SALDO Fatt.n. 18/898  del 31/07/2018 MATERIALE ELETTRICO;24-09-2018;170224;0;75;1;Spese correnti;3;Acquisto di beni e servizi;1;Acquisto di beni;2;Altri beni di consumo;999;Altri beni e materiali di consumo n.a.c.;24-09-2018;
795;1;0;"10.767,72";"32.303,16";ROCCA SAN GIOVANNI LIGHTING S.R.L.;X37139C8F1;"SALDO Fatt.n. 1  del 22/06/2018 CORRISPETTIVO EFFICIENTAMENTO, RIQUALIFICAZIONE E GESTIONE IMP.P.I.MAGGIO 2018";24-09-2018;170236;0;105;1;Spese correnti;3;Acquisto di beni e servizi;2;Acquisto di servizi;5;Utenze e canoni;4;Energia elettrica;24-09-2018;
795;2;0;"10.767,72";"32.303,16";ROCCA SAN GIOVANNI LIGHTING S.R.L.;X37139C8F1;"SALDO Fatt.n. 2  del 28/06/2018 CORRISPETTIVO EFFICIENTAMENTO, RIQUALIFICAZIONE E GESTIONE IMP.P.I.GIUGNO 2018";24-09-2018;170236;0;105;1;Spese correnti;3;Acquisto di beni e servizi;2;Acquisto di servizi;5;Utenze e canoni;4;Energia elettrica;24-09-2018;
795;3;0;"10.767,72";"32.303,16";ROCCA SAN GIOVANNI LIGHTING S.R.L.;X37139C8F1;"SALDO Fatt.n. 3  del 31/07/2018 CORRISPETTIVO EFFICIENTAMENTO, RIQUALIFICAZIONE E GESTIONE IMP.P.I.LUGLIO 2018";24-09-2018;170236;0;105;1;Spese correnti;3;Acquisto di beni e servizi;2;Acquisto di servizi;5;Utenze e canoni;4;Energia elettrica;24-09-2018;
796;1;0;"260,30";"260,30";D'ANGELO GIOVANNI; ;Indennita' di funzione Vice-Sindaco settembre 2018;24-09-2018;110134;0;162;1;Spese correnti;3;Acquisto di beni e servizi;2;Acquisto di servizi;1;Organi e incarichi istituzionali dell'amministrazione;1;Organi istituzionali dell'amministrazione - Indennit�;24-09-2018;
797;1;0;"195,22";"195,22";MARTELLI DOMENICO; ;Indennita di funzione assessore settembre 2018;24-09-2018;110134;0;163;1;Spese correnti;3;Acquisto di beni e servizi;2;Acquisto di servizi;1;Organi e incarichi istituzionali dell'amministrazione;1;Organi istituzionali dell'amministrazione - Indennit�;24-09-2018;
799;1;0;"-233,14";"3.011,66";E.N.E.L. ENERGIA S.P.A.;X37139C8F1;SALDO Fatt.n. 004810585618  del 08/04/2018 ENERGIA ELETTRICA - I.P.;24-09-2018;170236;0;105;1;Spese correnti;3;Acquisto di beni e servizi;2;Acquisto di servizi;5;Utenze e canoni;4;Energia elettrica;24-09-2018;
799;2;0;"9,97";"3.011,66";E.N.E.L. ENERGIA S.P.A.;X37139C8F1;SALDO Fatt.n. 004810589965  del 08/04/2018 ENERGIA ELETTRICA - I.P.;24-09-2018;170236;0;105;1;Spese correnti;3;Acquisto di beni e servizi;2;Acquisto di servizi;5;Utenze e canoni;4;Energia elettrica;24-09-2018;
799;3;0;"12,41";"3.011,66";E.N.E.L. ENERGIA S.P.A.;X37139C8F1;SALDO Fatt.n. 004810587197  del 08/04/2018 ENERGIA ELETTRICA - I.P.;24-09-2018;170236;0;105;1;Spese correnti;3;Acquisto di beni e servizi;2;Acquisto di servizi;5;Utenze e canoni;4;Energia elettrica;24-09-2018;
799;4;0;"12,69";"3.011,66";E.N.E.L. ENERGIA S.P.A.;X37139C8F1;SALDO Fatt.n. 004810587190  del 08/04/2018 ENERGIA ELETTRICA - I.P.;24-09-2018;170236;0;105;1;Spese correnti;3;Acquisto di beni e servizi;2;Acquisto di servizi;5;Utenze e canoni;4;Energia elettrica;24-09-2018;
799;5;0;"14,77";"3.011,66";E.N.E.L. ENERGIA S.P.A.;X37139C8F1;SALDO Fatt.n. 004810589961  del 08/04/2018 ENERGIA ELETTRICA - I.P.;24-09-2018;170236;0;105;1;Spese correnti;3;Acquisto di beni e servizi;2;Acquisto di servizi;5;Utenze e canoni;4;Energia elettrica;24-09-2018;
799;6;0;"41,59";"3.011,66";E.N.E.L. ENERGIA S.P.A.;X37139C8F1;SALDO Fatt.n. 004810587199  del 08/04/2018 ENERGIA ELETTRICA - I.P.;24-09-2018;170236;0;105;1;Spese correnti;3;Acquisto di beni e servizi;2;Acquisto di servizi;5;Utenze e canoni;4;Energia elettrica;24-09-2018;
799;7;0;"41,87";"3.011,66";E.N.E.L. ENERGIA S.P.A.;X37139C8F1;SALDO Fatt.n. 004810589972  del 08/04/2018 ENERGIA ELETTRICA - I.P.;24-09-2018;170236;0;105;1;Spese correnti;3;Acquisto di beni e servizi;2;Acquisto di servizi;5;Utenze e canoni;4;Energia elettrica;24-09-2018;
799;8;0;"63,81";"3.011,66";E.N.E.L. ENERGIA S.P.A.;X37139C8F1;SALDO Fatt.n. 004810587200  del 08/04/2018 ENERGIA ELETTRICA - I.P.;24-09-2018;170236;0;105;1;Spese correnti;3;Acquisto di beni e servizi;2;Acquisto di servizi;5;Utenze e canoni;4;Energia elettrica;24-09-2018;
799;9;0;"69,17";"3.011,66";E.N.E.L. ENERGIA S.P.A.;X37139C8F1;SALDO Fatt.n. 004810589973  del 08/04/2018 ENERGIA ELETTRICA - I.P.;24-09-2018;170236;0;105;1;Spese correnti;3;Acquisto di beni e servizi;2;Acquisto di servizi;5;Utenze e canoni;4;Energia elettrica;24-09-2018;
799;10;0;"74,64";"3.011,66";E.N.E.L. ENERGIA S.P.A.;X37139C8F1;SALDO Fatt.n. 004810587198  del 08/04/2018 ENERGIA ELETTRICA - I.P.;24-09-2018;170236;0;105;1;Spese correnti;3;Acquisto di beni e servizi;2;Acquisto di servizi;5;Utenze e canoni;4;Energia elettrica;24-09-2018;
799;11;0;"86,86";"3.011,66";E.N.E.L. ENERGIA S.P.A.;X37139C8F1;SALDO Fatt.n. 004810587196  del 08/04/2018 ENERGIA ELETTRICA - I.P.;24-09-2018;170236;0;105;1;Spese correnti;3;Acquisto di beni e servizi;2;Acquisto di servizi;5;Utenze e canoni;4;Energia elettrica;24-09-2018;
799;12;0;"105,92";"3.011,66";E.N.E.L. ENERGIA S.P.A.;X37139C8F1;SALDO Fatt.n. 004810589959  del 08/04/2018 ENERGIA ELETTRICA - I.P.;24-09-2018;170236;0;105;1;Spese correnti;3;Acquisto di beni e servizi;2;Acquisto di servizi;5;Utenze e canoni;4;Energia elettrica;24-09-2018;
799;13;0;"108,40";"3.011,66";E.N.E.L. ENERGIA S.P.A.;X37139C8F1;SALDO Fatt.n. 004810589963  del 08/04/2018 ENERGIA ELETTRICA - I.P.;24-09-2018;170236;0;105;1;Spese correnti;3;Acquisto di beni e servizi;2;Acquisto di servizi;5;Utenze e canoni;4;Energia elettrica;24-09-2018;
799;14;0;"114,88";"3.011,66";E.N.E.L. ENERGIA S.P.A.;X37139C8F1;SALDO Fatt.n. 004810589971  del 08/04/2018 ENERGIA ELETTRICA - I.P.;24-09-2018;170236;0;105;1;Spese correnti;3;Acquisto di beni e servizi;2;Acquisto di servizi;5;Utenze e canoni;4;Energia elettrica;24-09-2018;
799;15;0;"131,93";"3.011,66";E.N.E.L. ENERGIA S.P.A.;X37139C8F1;SALDO Fatt.n. 004810587204  del 08/04/2018 ENERGIA ELETTRICA - I.P.;24-09-2018;170236;0;105;1;Spese correnti;3;Acquisto di beni e servizi;2;Acquisto di servizi;5;Utenze e canoni;4;Energia elettrica;24-09-2018;
799;16;0;"147,50";"3.011,66";E.N.E.L. ENERGIA S.P.A.;X37139C8F1;SALDO Fatt.n. 004810589974  del 08/04/2018 ENERGIA ELETTRICA - I.P.;24-09-2018;170236;0;105;1;Spese correnti;3;Acquisto di beni e servizi;2;Acquisto di servizi;5;Utenze e canoni;4;Energia elettrica;24-09-2018;
799;17;0;"171,67";"3.011,66";E.N.E.L. ENERGIA S.P.A.;X37139C8F1;SALDO Fatt.n. 004810580166  del 08/04/2018 ENERGIA ELETTRICA - I.P.;24-09-2018;170236;0;105;1;Spese correnti;3;Acquisto di beni e servizi;2;Acquisto di servizi;5;Utenze e canoni;4;Energia elettrica;24-09-2018;
799;18;0;"339,65";"3.011,66";E.N.E.L. ENERGIA S.P.A.;X37139C8F1;SALDO Fatt.n. 004810587194  del 08/04/2018 ENERGIA ELETTRICA - I.P.;24-09-2018;170236;0;105;1;Spese correnti;3;Acquisto di beni e servizi;2;Acquisto di servizi;5;Utenze e canoni;4;Energia elettrica;24-09-2018;
799;19;0;"617,71";"3.011,66";E.N.E.L. ENERGIA S.P.A.;X37139C8F1;SALDO Fatt.n. 004810613862  del 13/04/2018 ENERGIA ELETTRICA - I.P.;24-09-2018;170236;0;105;1;Spese correnti;3;Acquisto di beni e servizi;2;Acquisto di servizi;5;Utenze e canoni;4;Energia elettrica;24-09-2018;
799;20;0;"1.079,36";"3.011,66";E.N.E.L. ENERGIA S.P.A.;X37139C8F1;SALDO Fatt.n. 004810587191  del 08/04/2018 ENERGIA ELETTRICA - I.P.;24-09-2018;170236;0;105;1;Spese correnti;3;Acquisto di beni e servizi;2;Acquisto di servizi;5;Utenze e canoni;4;Energia elettrica;24-09-2018;
800;1;0;"6,54";"582,50";E.N.E.L. ENERGIA S.P.A.;X37139C8F1;SALDO Fatt.n. 004810589969  del 08/04/2018 ENERGIA ELETTRICA - I.P.;24-09-2018;170236;0;105;1;Spese correnti;3;Acquisto di beni e servizi;2;Acquisto di servizi;5;Utenze e canoni;4;Energia elettrica;24-09-2018;
800;2;0;"7,15";"582,50";E.N.E.L. ENERGIA S.P.A.;X37139C8F1;SALDO Fatt.n. 004810587192  del 08/04/2018 ENERGIA ELETTRICA - I.P.;24-09-2018;170236;0;105;1;Spese correnti;3;Acquisto di beni e servizi;2;Acquisto di servizi;5;Utenze e canoni;4;Energia elettrica;24-09-2018;
800;3;0;"7,34";"582,50";E.N.E.L. ENERGIA S.P.A.;X37139C8F1;SALDO Fatt.n. 004810587203  del 08/04/2018 ENERGIA ELETTRICA - I.P.;24-09-2018;170236;0;105;1;Spese correnti;3;Acquisto di beni e servizi;2;Acquisto di servizi;5;Utenze e canoni;4;Energia elettrica;24-09-2018;
800;4;0;"10,17";"582,50";E.N.E.L. ENERGIA S.P.A.;X37139C8F1;SALDO Fatt.n. 004810589960  del 08/04/2018 ENERGIA ELETTRICA - I.P.;24-09-2018;170236;0;105;1;Spese correnti;3;Acquisto di beni e servizi;2;Acquisto di servizi;5;Utenze e canoni;4;Energia elettrica;24-09-2018;
800;5;0;"18,08";"582,50";E.N.E.L. ENERGIA S.P.A.;X37139C8F1;SALDO Fatt.n. 004810589957  del 08/04/2018 ENERGIA ELETTRICA - I.P.;24-09-2018;170236;0;105;1;Spese correnti;3;Acquisto di beni e servizi;2;Acquisto di servizi;5;Utenze e canoni;4;Energia elettrica;24-09-2018;
800;6;0;"23,06";"582,50";E.N.E.L. ENERGIA S.P.A.;X37139C8F1;SALDO Fatt.n. 004810587189  del 08/04/2018 ENERGIA ELETTRICA - I.P.;24-09-2018;170236;0;105;1;Spese correnti;3;Acquisto di beni e servizi;2;Acquisto di servizi;5;Utenze e canoni;4;Energia elettrica;24-09-2018;
800;7;0;"28,06";"582,50";E.N.E.L. ENERGIA S.P.A.;X37139C8F1;SALDO Fatt.n. 004810596242  del 09/04/2018 ENERGIA ELETTRICA - I.P.;24-09-2018;170236;0;105;1;Spese correnti;3;Acquisto di beni e servizi;2;Acquisto di servizi;5;Utenze e canoni;4;Energia elettrica;24-09-2018;
800;8;0;"35,21";"582,50";E.N.E.L. ENERGIA S.P.A.;X37139C8F1;SALDO Fatt.n. 004810596241  del 09/04/2018 ENERGIA ELETTRICA - I.P.;24-09-2018;170236;0;105;1;Spese correnti;3;Acquisto di beni e servizi;2;Acquisto di servizi;5;Utenze e canoni;4;Energia elettrica;24-09-2018;
800;9;0;"82,41";"582,50";E.N.E.L. ENERGIA S.P.A.;X37139C8F1;SALDO Fatt.n. 004810589956  del 08/04/2018 ENERGIA ELETTRICA - I.P.;24-09-2018;170236;0;105;1;Spese correnti;3;Acquisto di beni e servizi;2;Acquisto di servizi;5;Utenze e canoni;4;Energia elettrica;24-09-2018;
800;10;0;"87,50";"582,50";E.N.E.L. ENERGIA S.P.A.;X37139C8F1;SALDO Fatt.n. 004810589962  del 08/04/2018 ENERGIA ELETTRICA - I.P.;24-09-2018;170236;0;105;1;Spese correnti;3;Acquisto di beni e servizi;2;Acquisto di servizi;5;Utenze e canoni;4;Energia elettrica;24-09-2018;
800;11;0;"97,05";"582,50";E.N.E.L. ENERGIA S.P.A.;X37139C8F1;SALDO Fatt.n. 004810589967  del 08/04/2018 ENERGIA ELETTRICA - I.P.;24-09-2018;170236;0;105;1;Spese correnti;3;Acquisto di beni e servizi;2;Acquisto di servizi;5;Utenze e canoni;4;Energia elettrica;24-09-2018;
800;12;0;"179,93";"582,50";E.N.E.L. ENERGIA S.P.A.;X37139C8F1;SALDO Fatt.n. 004810589966  del 08/04/2018 ENERGIA ELETTRICA - I.P.;24-09-2018;170236;0;105;1;Spese correnti;3;Acquisto di beni e servizi;2;Acquisto di servizi;5;Utenze e canoni;4;Energia elettrica;24-09-2018;
801;1;0;"-4,81";"2.695,00";E.N.E.L. ENERGIA S.P.A.;X37139C8F1;SALDO Fatt.n. 004810685562  del 30/04/2018 ENERGIA  ELETTRICA -P.I.;24-09-2018;170236;0;105;1;Spese correnti;3;Acquisto di beni e servizi;2;Acquisto di servizi;5;Utenze e canoni;4;Energia elettrica;24-09-2018;
801;2;0;"1,09";"2.695,00";E.N.E.L. ENERGIA S.P.A.;X37139C8F1;SALDO Fatt.n. 004810671361  del 26/04/2018 ENERGIA ELETTRICA- ILL. PUBBLICA;24-09-2018;170236;0;105;1;Spese correnti;3;Acquisto di beni e servizi;2;Acquisto di servizi;5;Utenze e canoni;4;Energia elettrica;24-09-2018;
801;3;0;"4,38";"2.695,00";E.N.E.L. ENERGIA S.P.A.;X37139C8F1;SALDO Fatt.n. 004810685571  del 30/04/2018 ENERGIA ELETTRICA- ILL. PUBBLICA;24-09-2018;170236;0;105;1;Spese correnti;3;Acquisto di beni e servizi;2;Acquisto di servizi;5;Utenze e canoni;4;Energia elettrica;24-09-2018;
801;4;0;"5,21";"2.695,00";E.N.E.L. ENERGIA S.P.A.;X37139C8F1;SALDO Fatt.n. 004810685565  del 30/04/2018 ENERGIA  ELETTRICA -P.I.;24-09-2018;170236;0;105;1;Spese correnti;3;Acquisto di beni e servizi;2;Acquisto di servizi;5;Utenze e canoni;4;Energia elettrica;24-09-2018;
801;5;0;"5,48";"2.695,00";E.N.E.L. ENERGIA S.P.A.;X37139C8F1;SALDO Fatt.n. 004810685566  del 30/04/2018 ENERGIA  ELETTRICA -P.I.;24-09-2018;170236;0;105;1;Spese correnti;3;Acquisto di beni e servizi;2;Acquisto di servizi;5;Utenze e canoni;4;Energia elettrica;24-09-2018;
801;6;0;"7,88";"2.695,00";E.N.E.L. ENERGIA S.P.A.;X37139C8F1;SALDO Fatt.n. 004810685568  del 30/04/2018 ENERGIA  ELETTRICA -P.I.;24-09-2018;170236;0;105;1;Spese correnti;3;Acquisto di beni e servizi;2;Acquisto di servizi;5;Utenze e canoni;4;Energia elettrica;24-09-2018;
801;7;0;"9,16";"2.695,00";E.N.E.L. ENERGIA S.P.A.;X37139C8F1;SALDO Fatt.n. 004810685559  del 30/04/2018 ENERGIA ELETTRICA- ILL. PUBBLICA;24-09-2018;170236;0;105;1;Spese correnti;3;Acquisto di beni e servizi;2;Acquisto di servizi;5;Utenze e canoni;4;Energia elettrica;24-09-2018;
801;8;0;"20,75";"2.695,00";E.N.E.L. ENERGIA S.P.A.;X37139C8F1;SALDO Fatt.n. 004810685563  del 30/04/2018 ENERGIA ELETTRICA- ILL. PUBBLICA;24-09-2018;170236;0;105;1;Spese correnti;3;Acquisto di beni e servizi;2;Acquisto di servizi;5;Utenze e canoni;4;Energia elettrica;24-09-2018;
801;9;0;"27,94";"2.695,00";E.N.E.L. ENERGIA S.P.A.;X37139C8F1;SALDO Fatt.n. 004810685564  del 30/04/2018 ENERGIA ELETTRICA- ILL. PUBBLICA;24-09-2018;170236;0;105;1;Spese correnti;3;Acquisto di beni e servizi;2;Acquisto di servizi;5;Utenze e canoni;4;Energia elettrica;24-09-2018;
801;10;0;"30,34";"2.695,00";E.N.E.L. ENERGIA S.P.A.;X37139C8F1;SALDO Fatt.n. 004810685567  del 30/04/2018 ENERGIA  ELETTRICA -P.I.;24-09-2018;170236;0;105;1;Spese correnti;3;Acquisto di beni e servizi;2;Acquisto di servizi;5;Utenze e canoni;4;Energia elettrica;24-09-2018;
801;11;0;"32,81";"2.695,00";E.N.E.L. ENERGIA S.P.A.;X37139C8F1;SALDO Fatt.n. 004810685574  del 30/04/2018 ENERGIA  ELETTRICA -P.I.;24-09-2018;170236;0;105;1;Spese correnti;3;Acquisto di beni e servizi;2;Acquisto di servizi;5;Utenze e canoni;4;Energia elettrica;24-09-2018;
801;12;0;"33,22";"2.695,00";E.N.E.L. ENERGIA S.P.A.;X37139C8F1;SALDO Fatt.n. 004810685569  del 30/04/2018 ENERGIA ELETTRICA- ILL. PUBBLICA;24-09-2018;170236;0;105;1;Spese correnti;3;Acquisto di beni e servizi;2;Acquisto di servizi;5;Utenze e canoni;4;Energia elettrica;24-09-2018;
801;13;0;"44,97";"2.695,00";E.N.E.L. ENERGIA S.P.A.;X37139C8F1;SALDO Fatt.n. 004810685453  del 30/04/2018 ENERGIA ELETTRICA- ILL. PUBBLICA;24-09-2018;170236;0;105;1;Spese correnti;3;Acquisto di beni e servizi;2;Acquisto di servizi;5;Utenze e canoni;4;Energia elettrica;24-09-2018;
801;14;0;"49,40";"2.695,00";E.N.E.L. ENERGIA S.P.A.;X37139C8F1;SALDO Fatt.n. 004810685570  del 30/04/2018 ENERGIA ELETTRICA - I.P.;24-09-2018;170236;0;105;1;Spese correnti;3;Acquisto di beni e servizi;2;Acquisto di servizi;5;Utenze e canoni;4;Energia elettrica;24-09-2018;
801;15;0;"81,30";"2.695,00";E.N.E.L. ENERGIA S.P.A.;X37139C8F1;SALDO Fatt.n. 004810685575  del 30/04/2018 ENERGIA ELETTRICA- ILL. PUBBLICA;24-09-2018;170236;0;105;1;Spese correnti;3;Acquisto di beni e servizi;2;Acquisto di servizi;5;Utenze e canoni;4;Energia elettrica;24-09-2018;
801;16;0;"193,16";"2.695,00";E.N.E.L. ENERGIA S.P.A.;X37139C8F1;SALDO Fatt.n. 004810685573  del 30/04/2018 ENERGIA  ELETTRICA -P.I.;24-09-2018;170236;0;105;1;Spese correnti;3;Acquisto di beni e servizi;2;Acquisto di servizi;5;Utenze e canoni;4;Energia elettrica;24-09-2018;
801;17;0;"379,86";"2.695,00";E.N.E.L. ENERGIA S.P.A.;X37139C8F1;SALDO Fatt.n. 004810685572  del 30/04/2018 ENERGIA ELETTRICA - I.P.;24-09-2018;170236;0;105;1;Spese correnti;3;Acquisto di beni e servizi;2;Acquisto di servizi;5;Utenze e canoni;4;Energia elettrica;24-09-2018;
801;18;0;"577,49";"2.695,00";E.N.E.L. ENERGIA S.P.A.;X37139C8F1;SALDO Fatt.n. 004810685561  del 30/04/2018 ENERGIA  ELETTRICA -P.I.;24-09-2018;170236;0;105;1;Spese correnti;3;Acquisto di beni e servizi;2;Acquisto di servizi;5;Utenze e canoni;4;Energia elettrica;24-09-2018;
801;19;0;"1.195,37";"2.695,00";E.N.E.L. ENERGIA S.P.A.;X37139C8F1;SALDO Fatt.n. 004810685560  del 30/04/2018 MATERIALE ELETTRICO - ILL- PUBBLICA;24-09-2018;170236;0;105;1;Spese correnti;3;Acquisto di beni e servizi;2;Acquisto di servizi;5;Utenze e canoni;4;Energia elettrica;24-09-2018;
802;1;0;"600,00";"600,00";IT CREATIVE DI D'ANGELO FRANCESCO; ;SALDO Fatt.n. 2/A  del 27/02/2017 ASSISTENZA POSTAZIONI INFORMATICHE E SITO ISTITUZIONALE FEBBRAIO 2017;27-09-2018;110248;0;38;1;Spese correnti;3;Acquisto di beni e servizi;2;Acquisto di servizi;19;Servizi informatici e di telecomunicazioni;1;Gestione e manutenzione applicazioni;27-09-2018;
803;1;0;"924,93";"924,93";PAOLUCCI GIUSEPPE;Z0E0826CBC;SALDO Fatt.n. 2/PA  del 01/10/2018 PRESTAZIONI PROFESSIONALI INTERVENTI DI MESSA IN SICUREZZA EDIFICIO SCOLASTICO CAPOLUOGO - SECODO ACCONTO;27-09-2018;240240;0;137;2;Spese in conto capitale;2;Investimenti fissi lordi e acquisto di terreni;1;Beni materiali;9;Beni immobili;3;Fabbricati ad uso scolastico;27-09-2018;
804;1;0;"506,85";"506,85";POSTE ITALIANE S.P.A.;ZC921B047B;SALDO Fatt.n. 8718147052  del 08/05/2018 CORRISPONDENZE AFFRANCATE NEL MESE DI FEBBRAIO 2018;27-09-2018;110260;0;12;1;Spese correnti;3;Acquisto di beni e servizi;2;Acquisto di servizi;16;Servizi amministrativi;2;Spese postali;27-09-2018;
805;1;0;"484,95";"484,95";DICARTA S.R.L.;Z79235FAFD;SALDO Fatt.n. 30/01  del 03/05/2018 CARTA PER FOTOCOPIE FORMATO A4;27-09-2018;110224;0;113;1;Spese correnti;3;Acquisto di beni e servizi;1;Acquisto di beni;2;Altri beni di consumo;1;"Carta, cancelleria e stampati";27-09-2018;
806;1;0;"75,64";"75,64";GASPARI E. S.R.L.;Z4322E7194;SALDO Fatt.n. 08399  del 14/05/2018 PERGAMENA X MATRIMONIO CIVILE;27-09-2018;110224;0;100;1;Spese correnti;3;Acquisto di beni e servizi;1;Acquisto di beni;2;Altri beni di consumo;1;"Carta, cancelleria e stampati";27-09-2018;
807;1;0;"2.684,00";"2.684,00";MR di Molinaro Roberto;Z812352185;"SALDO Fatt.n. FATTPA 25_18  del 24/05/2018 NOLEGGIO ED ALLESTIMENTO DI TAVOLI, SEDIE E SCRIVANIE PER CONCORSO PUBBLICO";27-09-2018;190050;0;104;1;Spese correnti;3;Acquisto di beni e servizi;2;Acquisto di servizi;10;Consulenze;1;"Incarichi libero professionali di studi, ricerca e consulenza";27-09-2018;
808;1;0;"1.723,00";"1.723,00";"Studio Bevilacqua di Pietro Bevilacqua &amp; C SAS";Z991EE94E4;SALDO Fatt.n. 24/A  del 01/06/2018 Compenso Nucleo di valutazione prima annualita' 2017;27-09-2018;190082;0;104;1;Spese correnti;4;Trasferimenti correnti;1;Trasferimenti correnti a Amministrazioni Pubbliche;2;Trasferimenti correnti a Amministrazioni Locali;5;Trasferimenti correnti a Unioni di Comuni;27-09-2018;
809;1;0;"976,00";"976,00";MYO S.R.L.;Z7B237315B;SALDO Fatt.n. 2040/180015976  del 31/05/2018 ABBONAMENTO ON LINE FORMULA;27-09-2018;110230;0;108;1;Spese correnti;3;Acquisto di beni e servizi;1;Acquisto di beni;1;"Giornali, riviste e pubblicazioni";1;Giornali e riviste;27-09-2018;
810;1;0;"2.168,49";"2.168,49";BLUE LINE SOC. COOP. SOCIALE;Z772322019;SALDO Fatt.n. 238  del 31/05/2018 MANUTENZIONE VERDE PUBBLICO;27-09-2018;161548;0;106;1;Spese correnti;3;Acquisto di beni e servizi;2;Acquisto di servizi;15;Contratti di servizio pubblico;999;Altre spese per contratti di servizio pubblico;27-09-2018;
811;1;0;"600,00";"600,00";IT CREATIVE DI D'ANGELO FRANCESCO;Z6D1D90C9A;SALDO Fatt.n. 17/A  del 29/05/2018 ASSISTENZA POSTAZIONI INFORMATICHE E SITO ISTITUZIONALE MAGGIO 2018;27-09-2018;110248;0;122;1;Spese correnti;3;Acquisto di beni e servizi;2;Acquisto di servizi;19;Servizi informatici e di telecomunicazioni;10;Servizi di consulenza e prestazioni professionali ICT;27-09-2018;
812;1;0;"873,87";"1.747,74";CONSORZIO COOPERATIVE SOCIALI S.G.S.;ZF0189D68F;SALDO Fatt.n. 436/10  del 03/05/2018 GESTIONE BIBLIOTECA COMUNALE APRILE 2018;27-09-2018;140730;0;49;1;Spese correnti;3;Acquisto di beni e servizi;2;Acquisto di servizi;15;Contratti di servizio pubblico;999;Altre spese per contratti di servizio pubblico;27-09-2018;
812;2;0;"873,87";"1.747,74";CONSORZIO COOPERATIVE SOCIALI S.G.S.;ZF0189D68F;SALDO Fatt.n. 603/10  del 04/06/2018 GESTIONE BIBLIOTECA COMUNALE DI MAGGIO 2018;27-09-2018;140730;0;49;1;Spese correnti;3;Acquisto di beni e servizi;2;Acquisto di servizi;15;Contratti di servizio pubblico;999;Altre spese per contratti di servizio pubblico;27-09-2018;
813;1;0;"42,76";"204,03";METAMER S.R.L.;X37139C8F1;SALDO Fatt.n. 0001BF20180000001583  del 17/08/2018 GAS METANO LUGLIO 2018;27-09-2018;140242;0;44;1;Spese correnti;3;Acquisto di beni e servizi;2;Acquisto di servizi;5;Utenze e canoni;6;Gas;27-09-2018;
813;2;0;"79,27";"204,03";METAMER S.R.L.;X37139C8F1;SALDO Fatt.n. 0001BF20180000001275  del 15/06/2018 GAS METANO MAGGIO 2018;27-09-2018;140242;0;44;1;Spese correnti;3;Acquisto di beni e servizi;2;Acquisto di servizi;5;Utenze e canoni;6;Gas;27-09-2018;
813;3;0;"82,00";"204,03";METAMER S.R.L.;X37139C8F1;SALDO Fatt.n. 0001BF20180000001481  del 13/07/2018 GAS METANO GIUGNO 2018;27-09-2018;140242;0;44;1;Spese correnti;3;Acquisto di beni e servizi;2;Acquisto di servizi;5;Utenze e canoni;6;Gas;27-09-2018;
814;1;0;"43,94";"43,94";METAMER S.R.L.;X37139C8F1;SALDO Fatt.n. 0001BF20180000001331  del 13/07/2018 METANIO MAG.-GIU.2018;27-09-2018;161646;0;104;1;Spese correnti;3;Acquisto di beni e servizi;2;Acquisto di servizi;5;Utenze e canoni;4;Energia elettrica;27-09-2018;
815;1;0;"21,83";"21,83";METAMER S.R.L.;X37139C8F1;SALDO Fatt.n. 0001BF20180000001330  del 13/07/2018 METANO MUNICIPIO MAG.-GIU.2018;27-09-2018;110832;0;43;1;Spese correnti;3;Acquisto di beni e servizi;2;Acquisto di servizi;5;Utenze e canoni;6;Gas;27-09-2018;
816;1;0;"401,47";"401,47";ETERNEDILE SPA;Z7C21E961D;SALDO Fatt.n. VP-219  del 31/07/2018 MATERIALE EDILE;27-09-2018;170112;0;66;1;Spese correnti;3;Acquisto di beni e servizi;1;Acquisto di beni;2;Altri beni di consumo;999;Altri beni e materiali di consumo n.a.c.;27-09-2018;
817;1;0;"18.602,95";"18.602,95";RIECO SPA;3475364917;SALDO Fatt.n. 180289  del 30/04/2018 SERVIZIO RACCOLTA R.S.U. DI APRILE 2018;27-09-2018;160948;0;83;1;Spese correnti;3;Acquisto di beni e servizi;2;Acquisto di servizi;15;Contratti di servizio pubblico;5;Contratti di servizio per il conferimento in discarica dei rifiuti;27-09-2018;
818;1;0;"1.484,67";"3.081,82";RIECO SPA;3475364917;SALDO Fatt.n. 180245  del 31/03/2018 NOLEGGIO CASSONI ALL. "D" -  MARZO 2018;27-09-2018;160944;0;92;1;Spese correnti;3;Acquisto di beni e servizi;2;Acquisto di servizi;15;Contratti di servizio pubblico;5;Contratti di servizio per il conferimento in discarica dei rifiuti;27-09-2018;
818;2;0;"1.597,15";"3.081,82";RIECO SPA;3475364917;SALDO Fatt.n. 180361  del 30/04/2018 NOLEGGIO CASSONI ALL. "D" DI APRILE 2018;27-09-2018;160944;0;92;1;Spese correnti;3;Acquisto di beni e servizi;2;Acquisto di servizi;15;Contratti di servizio pubblico;5;Contratti di servizio per il conferimento in discarica dei rifiuti;27-09-2018;
819;1;0;"7.637,80";"7.637,80";CONSORZIO COMPRENSORIALE SMALTIMENTO.ECO.LAN. S.P.A.;Z7B220424F;SALDO Fatt.n. 100400  del 30/04/2018 AVVIO RECUPERO DEL RIFIUTO DI CUI AL CER 200108 DI APRILE 2018;27-09-2018;160944;0;85;1;Spese correnti;3;Acquisto di beni e servizi;2;Acquisto di servizi;15;Contratti di servizio pubblico;5;Contratti di servizio per il conferimento in discarica dei rifiuti;27-09-2018;
820;1;0;"1.038,00";"2.167,37";CONSORZIO COMPRENSORIALE SMALTIMENTO.ECO.LAN. S.P.A.;ZF822037E1;SALDO Fatt.n. 100424  del 30/04/2018 CONFERIMENTO RIFIUTI INGOMBRANTI DI APRILE 2018;27-09-2018;160944;0;84;1;Spese correnti;3;Acquisto di beni e servizi;2;Acquisto di servizi;15;Contratti di servizio pubblico;5;Contratti di servizio per il conferimento in discarica dei rifiuti;27-09-2018;
820;2;0;"1.129,37";"2.167,37";CONSORZIO COMPRENSORIALE SMALTIMENTO.ECO.LAN. S.P.A.;ZF822037E1;SALDO Fatt.n. 100327  del 31/03/2018 CONFERIMENTO MULTIMATERIALI DI MARZO 2018;27-09-2018;160944;0;84;1;Spese correnti;3;Acquisto di beni e servizi;2;Acquisto di servizi;15;Contratti di servizio pubblico;5;Contratti di servizio per il conferimento in discarica dei rifiuti;27-09-2018;
